Workbook

Sheet TITLE(1)
R1: D09-PM-FY2025(A)
R5: PID No. | Y5: FEDERAL PROJECT No.
R6: 109871 | Y6: 100% STATE
R8: STATE JOB No. | Y8: CONSTRUCTION PROJECT No.
R9: 496045
S11: PROJECT DESCRIPTION FAST DRY, AUXILIARY PAVEMENT MARKINGS IN ALL EIGHT COUNTIES AT VARIOUS LOCATIONS IN DISTRICT NINE.
S15: 2023 SPECIFICATIONS THE STANDARD SPECIFICATIONS OF THE STATE OF OHIO, DEPARTMENT OF TRANSPORTATION, INCLUDING CHANGES AND SUPPLEMENTAL SPECIFICATIONS LISTED IN THE PROPOSAL SHALL GOVERN THIS IMPROVEMENT.
B20: LATITUDE: 39° 19'28"N | J20: LONGITUDE: 82° 57'47"W
B22: EARTH DISTURBED AREA: | P22: N/A*
B23: PROJECT EARTH DISTURBED AREA: | P23: N/A*
B24: EST. CONTRACTOR EARTH DISTURBED AREA: | P24: N/A*
B25: NOTICE OF INTENT EARTH DISTURBED AREA: | P25: N/A*
B26: RAILROAD INVOLVEMENT: | P26: NONE | S26: I HEREBY APPROVE THESE PLANS AND DECLARE THAT THE MAKING OF THIS IMPROVEMENT WILL NOT REQUIRE THE CLOSING OF THE HIGHWAY TO TRAFFIC AND THAT PROVISIONS FOR THE MAINTENANCE AND SAFETY OF TRAFFIC WILL BE AS SET FORTH IN THESE PLANS AND ESTIMATES.
B27: *TYPE OF PROJECT: | L27: MAINTENANCE
E42: PLANS PREPARED BY:
B43: ODOT-D09 ENGINEERING
B44: ENGINEER'S SEAL | K44: STANDARD CONSTRUCTION DRAWINGS | AC44: SUPPLEMENTAL SPECIFICATIONS
K46: MT-95.30 | N46: 2019-07-19 | Q46: MT-97.10 | T46: 2019-04-19 | W46: TC-41.20 | Z46: 2013-10-18 | AC46: 800 | AF46: 2024-07-19
K47: MT-95.31 | N47: 2019-07-19 | Q47: MT-98.10 | T47: 2020-01-17 | W47: TC-42.20 | Z47: 2013-10-18 | AC47: 832 | AF47: 2024-07-19
K48: MT-95.32 | N48: 2019-04-19 | Q48: MT-98.11 | T48: 2020-01-17 | W48: TC-52.10 | Z48: 2013-10-18
K49: MT-95.60 | N49: 2019-04-19 | Q49: MT-98.22 | T49: 2020-01-17 | W49: TC-52.20 | Z49: 2021-01-15
K50: MT-95.61 | N50: 2019-04-19 | Q50: MT-98.28 | T50: 2020-01-17 | W50: TC-71.10 | Z50: 2021-07-16
K51: MT-105.10 | N51: 2020-01-17 | Q51: MT-98.29 | T51: 2020-01-17 | W51: TC-72.20 | Z51: 2018-07-20 | AC51: SPECIAL PROVISIONS
Q52: MT-99.20 | T52: 2019-04-19

Sheet INDEX(2)
A2: INDEX OF SHEETS
B5: TITLE SHEET………………………………………………………………………………………………………….. | J5: ……..…..1
B7: INDEX OF SHEETS……………………………………………………………………………………………………… | J7: ……..…..2
B9: GENERAL NOTES………………………………………………………………………………………………… | J9: ..…..……3
B11: GENERAL SUMMARY…………………………………………………………………………………………………. | J11: …..……..4
B13: ADAMS SUB-SUMMARY……………………………………………………………………………………………… | J13: ………..6-7
B15: BROWN SUB-SUMMARY…………………………………………………………………………………………….. | J15: .……….8-9
B17: HIGHLAND SUB-SUMMARY…………………………………………………………………………………………. | J17: …….10-11
B19: JACKSON SUB-SUMMARY………………………………………………………………………………………….. | J19: ……12-13
B21: LAWRENCE SUB-SUMMARY……………………………………………………………………………………….. | J21: ……14-15
B23: PIKE SUB-SUMMARY………………………………………………………………………………………………… | J23: …… 16-17
B25: ROSS SUB-SUMMARY………………………………………………………………………………………………. | J25: ….....18-19
B27: SCIOTO SUBSUMMARY……………………………………………………………………………………………… | J27: ...…20-21
B29: REST AREAS, PARK & RIDES AND GARAGES SUB-SUMMARY..……..…….….…..….…...….. | J29: ….........22

Sheet GENERAL NOTES (3)
A1: GENERAL NOTES
A3: UTILITIES
A4: THERE ARE NO UNDERGROUND UTILITIES SHOWN ON THIS PLAN. THE NATURE OF THE WORK REQUIRED BY THIS PROJECT WILL NOT AFFECT ANY KNOWN UNDERGROUND UTILITIES THAT EXIST IN OR ADJACENT TO THE WORK AREA.
A9: LAYOUT AND PREMARKING
A10: ALL NEW MARKINGS SHALL BE PLACED OVER EXISTING MARKINGS. ANY CHANGES TO THE EXISTING MARKINGS SHALL BE FURNISHED TO THE CONTRACTOR AT THE PRE-CONSTRUCTION CONFERENCE. WHERE THE MARKINGS WHICH WERE TO BE RETRACED ARE NO LONGER VISIBLE, THE CONTRACTOR SHALL PREMARK ALL MARKINGS FROM SCHEMATIC FORMS FURNISHED BY THE ENGINEER UNLESS THE ENGINEER DIRECTS OTHERWISE.
A18: REMOVAL
A19: ITEMS OF WORK FOR THE REMOVAL OF EXISTING MARKINGS ARE TO BE USED ONLY IF DIRECTED BY THE ENGINEER. REMOVAL SHALL BE PER CMS 614.11(G). THE FOLLOWING QUANTITES HAVE BEEN CARRIED TO THE GENERAL SUMMARY: ITEM 642 - REMOVAL OF PAVEMENT MARKING 3 EACH ITEM 644 - REMOVAL OF PAVEMENT MARKING 100 FEET ITEM 644 - REMOVAL OF PAVEMENT MARKING 10 EACH
A29: PROJECT START DATE
A30: WORK ON THIS PROJECT SHALL NOT BEGIN UNTIL JUNE 1, 2025.
A32: FACILITY MARKING
A33: FOR MARKINGS AT FACILITY LOCATIONS, SEE SHEET 22. MARKING WORK AT PARK & RIDES, REST AREAS, GARAGES AND OUTPOSTS IS INTENDED TO BE PERFORMED BETWEEN THE HOURS OF 7:00PM AND 6:00AM. IT IS THE CONTRACTOR'S RESPOSIBILITY THAT PAVEMENT MARKINGS ARE DRY AND ABLE TO ACCEPT TRAFFIC BY 6:00AM. CONTRACTOR TO CONTACT ENGINEER TWO BUSINESS DAYS PRIOR TO PAINTING AT THESE FACILITIES. CONTRACTOR TO CONTACT APPROPRIATE INTERNAL STAFF PRIOR TO BEGINNING WORK.
A42: ED COX - FACILITIES ADMIN. 740-774-8917
A43: SCOTT EDMINSTEN - ADAMS COUNTY MGR. 740-774-9001
A44: CRAIG STOUT - BROWN COUNTY MGR. 740-774-9009
A45: ARIK ADAMS - HIGHLAND COUNTY MGR. 740-774-9017
A46: RICK WARD - JACKSON COUNTY MGR. 740-774-9031
A47: MARK GLEICHAUF - LAWRENCE COUNTY MGR. 740-774-9039
A48: JOSH HAVENS - PIKE COUNTY MGR. 740-774-9084
A49: BILL PICKERRELL - ROSS COUNTY MGR. 740-774-8929
A50: CHRIS NIZIOL - SCIOTO COUNTY MGR. 740-774-8991

Sheet MOT (4)
A1: MAINTENANCE OF TRAFFIC NOTES
A3: MAINTENANCE OF TRAFFIC | C3: MAINTENANCE OF TRAFFIC (CONT.)
A4: A MINIMUM OF ONE LANE OF TRAFFIC IN EACH DIRECTION SHALL BE MAINTAINED AT ALL TIMES BY USE OF THE EXISTING PAVEMENT. LENGTH AND DURATION OF THE LANE CLOSURES AND RESTRICTIONS SHALL BE AT THE APPROVAL OF THE ENGINEER. IT IS THE INTENT TO MINIMIZE THE IMPACT TO THE TRAVELING PUBLIC. LANE CLOSURES OR RESTRICTIONS OVER SEGMENTS OF THE PROJECT IN WHICH NO WORK IS ANTICIPATED WITHIN A REASONABLE TIME FRAME, AS DIRECTED BY THE ENGINEER, SHALL NOT BE PERMITTED. THE LEVEL OF UTILIZATION OF MAINTENANCE OF TRAFFIC DEVICES SHALL BE COMMENSURATE WITH THE WORK IN PROGRESS. | C4: SHOULD THE CONTRACTOR FAIL TO MEET ANY OF THESE REQURIEMENTS, THE CONTRACTOR SHALL BE ASSESSED A DISINCENTIVE AMOUNT OF $50.00 FOR EACH MINUTE THE ABOVE DESCRIBED LANE CLOSURE RESTRICTIONS ARE VIOLATED.
C9: THE CONTRACTOR WILL ADVISE THE DISTRICT PUBLIC INFORMATION OFFICER AT (740) 774-8834, EMAIL D09.PIO@DOT.OHIO.GOV FOURTEEN (14) DAYS PRIOR TO THE START OF CONSTRUCTION ACTIVITIES. THE PROJECT ENGINEER WILL PROVIDE ASSISTANCE/CLARIFICATION FOR ANY QUESTIONS.
C15: ALL WORK AND TRAFFIC CONTROL DEVICES SHALL BE IN ACCORDANCE WITH 614 AND OTHER APPLICABLE PORTIONS OF THE SPECIFICATIONS, AS WELL AS THE OHIO MANUAL OF UNIFORM TRAFFIC CONTROL DEVICES. PAYMENT FOR ALL LABOR, EQUIPMENT AND MATERIALS SHALL BE INCLUDED IN THE LUMP SUM PRICE FOR 614, MAINTAINING TRAFFIC.
A16: ALL TRAFFIC CONTROL SIGNS, SIGNS, DEVICES, AND OPERATIONS USED FOR THE TEMPORARY MAINTENACE AND CONTROL SHALL AT ALL TIMES BE SUBJUCT TO THE DIRECTION AND CONTROL OF THE ENGINEER IN RESPECT TO THEIR CONDITION, LOCATIONS, AND TIMES OF APPLICATION. VISIBLE SIGNS AND DEVICES SHALL CONSISTENTLY REFLECT THE CONDITIONS ACTUALLY EXISTING. INAPPROPRIATE SIGNS AND DEVICES SHALL BE REMOVED OR COVERED.
C22: FLOOD LIGHTING
C23: FLOOD LIGHTING OF THE WORK SITES FOR OPERATIONS CONDUCTED DURING NIGHT TIME SO THAT LIGHTS DO NO CAUSE GLARE TO THE DRIVERS USING THE AREAS. TO ENSURE THE ADEQUACY OF THE FLODD LIGHT PLACEMENT, THE CONTRACTOR AND THE ENGINEER SHALL DRIVE THROUGH THE WORK SITE(S) EACH NIGHT WHEN THE LIGHTING IS IN PLACE AND OPERATIVE PRIOR TO COMMENCING ANY WORK. IF GLARE IS DETECTED, THE LIGHT PLACEMENT AND SHEILDING SHALL BE ADJUSTED TO THE SATISFACTION OF THE ENGINEER BEFORE WORK PROCEEDS.
A25: THE CONTRACTOR SHALL BE RESPONSIBLE FOR FURNISHING, ERECTING OR REPLACING, MAINTAINING, AND REMOVING ALL TEMPORARY TRAFFIC CONTROL SIGNS AND DEVICES THAT MAY BE REQUIRED BY THE CMS AND/OR THE OHIO MANUAL FOR UNIFORM TRAFFIC CONTROL DEVICES FOR THE MAINTENANCE OF THROUGH TRAFFIC.
A32: MAINTAIN TRAFFIC AS FOLLOWS: 1. ON TWO-LANE TWO-WAY ROADWAY, MAINTAIN TRAFFIC IN ACCORDANCE WITH STANDARD DRAWING MT-99.20. FLAGGERS IN ACCORDANCE WITH STANDARD CONSTRUCTION DRAWING MT-97.10 MAY BE USED AS REQUIRED TO PROGRESS THE WORK. 2. ON MULTI-LANE ROADWAYS MAINTAIN TRAFFIC IN ACCORDANCE WITH STANDARD DRAWING MT-99.20, (USING FLASHING ARROW PANEL IN ACCORDANCE WITH STANDARD DRAWING MT-95.30) AND LANE CLOSURES IN ACCORDANCE WITH STANDARD DRAWINGS MT-95.30, MT-95.31, MT-98.10, MT-98.11, MT-98.22, MT-98.28, OR MT-98.29 AS APPLICABLE MAY BE USED AS REQUIRED TO PROGRESS WORK.
C33: PAYMENT FOR ALL LABOR, EQUIPMENT AND MATERIALS SHALL BE INCLUDED IN THE LUMP SUM CONTRACT PRICE FOR ITEM 614, MAINTAINING TRAFFIC.
A46: NO WORK SHALL BE PERFORMED AND ALL EXISTING LANES SHALL BE OPEN TO TRAFFIC DURING DESIGNATED HOLIDAYS OR EVENTS: JUNETEENTH ELECTION DAY FOURTH OF JULY VETERANS DAY LABOR DAY THANKSGIVING DAY COLUMBUS DAY OTHER LOCAL EVENTS
A54: THE PERIOD OF TIME THAT THE LANES ARE TO BE OPEN DEPENDS ON THE DAY OF THE WEK ON WHICH THE HOLIDAY OR EVENT FALL. THE FOLLOWING SCHEDULE SHALL BE USED TO DETERMINE THIS PERIOD:
A59: DAY OF THE WEEK TIME ALL LANES MUST BE OPEN TO TRAFFIC
A60: SUNDAY 12:00 NOON FRIDAY THRU 6:00 AM MONDAY
A61: MONDAY 12:00 NOON FRIDAY THRU 6:00 AM TUESDAY
A62: TUESDAY 12:00 NOON MONDAY THRU 6:00 AM WEDNESDAY
A63: WEDNESDAY 12:00 NOON TUESDAY THRU 6:00 AM THURSDAY
A64: THURSDAY 12:00 NOON WEDNESDAY THRU 6:00 AM FRIDAY
A65: THURSDAY 6:00AM WEDNESDAY THRU 6:00AM MONDAY (THANKSGIVING ONLY)
A66: FRIDAY 12:00 NOON THURSDAY THRU 6:00 AM MONDAY
A67: SATURDAY 12:00 NOON FRIDAY TRHU 6:00 AM MONDAY

Sheet GENSUM(5)
A1: TO USE MACRO FOR PLACING ITEMS - CLICK THE BUTTON. IN THE DIALOG BOX, CLICK FILE THEN NAVIGATE TO I:\ODOTstd\V8istd\vba\data AND SELECT THE APPROPRIATE FILE (E = ENGLISH UNITS). CLICK 'OPEN'. THEN FROM THE DROP DOWN YOU CAN BEGIN SELECTING YOUR ITEMS. WARNING: BE SURE TO SELECT A CELL IN THE "ITEM" COLUMN PRIOR TO PLACING ANY ITEM FROM THE MACRO WINDOW. | | \/ | B1: The shape object InnerSheetBorder represents the drawing area of an 8.5"x11" ODOT General Summary sheet
B3: SHEET NUMBER | L3: PLAN SPLIT | M3: ITEM | N3: ITEM | O3: GRAND | P3: UNIT | Q3: DESCRIPTION | R3: SEE SHEET NO.
B5: 3 | C5: 7 | D5: 9 | E5: 11 | F5: 13 | G5: 15 | H5: 17 | I5: 19 | J5: 21 | K5: 22 | L5: 01/NFP/21 | N5: EXT. | O5: TOTAL
O7: =SUM(B7:L7) -> 0 | Q7: TRAFFIC CONTROL
K8: ='FACILITIES(21)'!C32 -> 0.09 | L8: =SUM(B8:K8) -> 0.09 | M8: 642 | N8: 00104 | O8: =SUM(B8:K8) -> 0.09 | P8: MI | Q8: EDGELINE 6". TYPE 1
K9: ='FACILITIES(21)'!E32 -> 0.01 | L9: =SUM(B9:K9) -> 0.01 | M9: 642 | N9: 00290 | O9: =SUM(B9:K9) -> 0.01 | P9: MI | Q9: CENTER LINE
C10: ='ADA(7)'!$C$33 -> 2552 | D10: ='BRO(9)'!$C$33 -> 7305 | E10: ='HIG(11)'!$C$33 -> 841 | F10: ='JAC(13)'!$C$33 -> 3396 | G10: ='LAW(15)'!$C$33 -> 1875 | H10: ='PIK(17)'!$C$33 -> 2556 | I10: ='ROS(19)'!$C$33 -> 10849 | J10: ='SCI(21)'!$C$33 -> 11249 | K10: ='FACILITIES(21)'!F32 -> 384 | L10: =SUM(B10:K10) -> 41007 | M10: 642 | N10: 00400 | O10: 41007 | P10: FT | Q10: CHANNELIZING LINE, 8", TYPE 1
C11: ='ADA(7)'!$D$33 -> 1152 | D11: ='BRO(9)'!$D$33 -> 0 | E11: ='HIG(11)'!$D$33 -> 0 | F11: ='JAC(13)'!$D$33 -> 7369 | G11: ='LAW(15)'!$D$33 -> 10754 | H11: ='PIK(17)'!$D$33 -> 1709 | I11: ='ROS(19)'!$D$33 -> 23351 | J11: ='SCI(21)'!$D$33 -> 1355 | L11: =SUM(B11:K11) -> 45690 | M11: 642 | N11: 00404 | O11: 45690 | P11: FT | Q11: CHANNELIZING LINE, 12", TYPE 1
C12: ='ADA(7)'!$E$33 -> 1042 | D12: ='BRO(9)'!$E$33 -> 1669 | E12: ='HIG(11)'!$E$33 -> 915 | F12: ='JAC(13)'!$E$33 -> 827 | G12: ='LAW(15)'!$E$33 -> 1018 | H12: ='PIK(17)'!$E$33 -> 1536 | I12: ='ROS(19)'!$E$33 -> 1872 | J12: ='SCI(21)'!$E$33 -> 1329 | K12: ='FACILITIES(21)'!H32 -> 93 | L12: =SUM(B12:K12) -> 10301 | M12: 642 | N12: 00500 | O12: 10301 | P12: FT | Q12: STOP LINE, TYPE 1
O13: 0
C14: ='ADA(7)'!$F$33 -> 2096 | D14: ='BRO(9)'!$F$33 -> 2955 | E14: ='HIG(11)'!$F$33 -> 3005 | F14: ='JAC(13)'!$F$33 -> 334 | G14: ='LAW(15)'!$F$33 -> 496 | H14: ='PIK(17)'!$F$33 -> 1672 | I14: ='ROS(19)'!$F$33 -> 661 | J14: ='SCI(21)'!$F$33 -> 1051 | L14: =SUM(B14:K14) -> 12270 | M14: 642 | N14: 00600 | O14: 12270 | P14: FT | Q14: CROSSWALK LINE, TYPE 1
C15: ='ADA(7)'!$G$33 -> 1064 | D15: ='BRO(9)'!$G$33 -> 9886 | E15: ='HIG(11)'!$G$33 -> 890 | F15: ='JAC(13)'!$G$33 -> 1237 | G15: ='LAW(15)'!$G$33 -> 2203 | H15: ='PIK(17)'!$G$33 -> 2890 | I15: ='ROS(19)'!$G$33 -> 11820 | J15: ='SCI(21)'!$G$33 -> 5578 | K15: ='FACILITIES(21)'!I32 -> 962 | L15: =SUM(B15:K15) -> 36530 | M15: 642 | N15: 00700 | O15: 36530 | P15: FT | Q15: TRANSVERSE/DIAGONAL LINE, TYPE 1
C16: ='ADA(7)'!$I$33 -> 0 | D16: ='BRO(9)'!$I$33 -> 0 | E16: ='HIG(11)'!$I$33 -> 0 | F16: ='JAC(13)'!$I$33 -> 0 | G16: ='LAW(15)'!$I$33 -> 0 | H16: ='PIK(17)'!$I$33 -> 0 | I16: ='ROS(19)'!$I$33 -> 0 | J16: ='SCI(21)'!$I$33 -> 0 | K16: ='FACILITIES(21)'!K32 -> 2822 | L16: =SUM(B16:K16) -> 2822 | M16: 642 | N16: 00800 | O16: 2822 | P16: FT | Q16: CURB MARKING, TYPE 1
C17: ='ADA(7)'!$J$33 -> 1191 | D17: ='BRO(9)'!$J$33 -> 689 | E17: ='HIG(11)'!$J$33 -> 60 | F17: ='JAC(13)'!$J$33 -> 232 | G17: ='LAW(15)'!$J$33 -> 0 | H17: ='PIK(17)'!$J$33 -> 212 | I17: ='ROS(19)'!$J$33 -> 821 | J17: ='SCI(21)'!$J$33 -> 1093 | L17: =SUM(B17:K17) -> 4298 | M17: 642 | N17: 00900 | O17: 4298 | P17: SQ FT | Q17: ISLAND MARKING, TYPE 1
C18: ='ADA(7)'!$L$33 -> 2 | D18: ='BRO(9)'!$L$33 -> 4 | E18: ='HIG(11)'!$L$33 -> 0 | F18: ='JAC(13)'!$L$33 -> 4 | G18: ='LAW(15)'!$L$33 -> 0 | H18: ='PIK(17)'!$L$33 -> 2 | I18: ='ROS(19)'!$L$33 -> 2 | J18: ='SCI(21)'!$L$33 -> 6 | L18: =SUM(B18:K18) -> 20 | M18: 642 | N18: 01000 | O18: 20 | P18: EACH | Q18: RAILROAD SYMBOL MARKING, TYPE 1
O19: 0
C20: ='ADA(7)'!$M$33 -> 8 | D20: ='BRO(9)'!$M$33 -> 8 | E20: ='HIG(11)'!$M$33 -> 6 | F20: ='JAC(13)'!$M$33 -> 2 | G20: ='LAW(15)'!$M$33 -> 9 | H20: ='PIK(17)'!$M$33 -> 4 | I20: ='ROS(19)'!$M$33 -> 2 | J20: ='SCI(21)'!$M$33 -> 3 | L20: =SUM(B20:K20) -> 42 | M20: 642 | N20: 01110 | O20: 42 | P20: EACH | Q20: SCHOOL SYMBOL MARKING, 96", TYPE 1
C21: ='ADA(7)'!$N$33 -> 0 | D21: ='BRO(9)'!$N$33 -> 66 | E21: ='HIG(11)'!$N$33 -> 0 | F21: ='JAC(13)'!$N$33 -> 0 | G21: ='LAW(15)'!$N$33 -> 0 | H21: ='PIK(17)'!$N$33 -> 0 | I21: ='ROS(19)'!$N$33 -> 0 | J21: ='SCI(21)'!$N$33 -> 0 | K21: ='FACILITIES(21)'!M32 -> 28888 | L21: =SUM(B21:K21) -> 28954 | M21: 642 | N21: 01200 | O21: 28954 | P21: FT | Q21: PARKING LOT STALL MARKING, TYPE 1
C22: ='ADA(7)'!$O$33 -> 35 | D22: ='BRO(9)'!$O$33 -> 115 | E22: ='HIG(11)'!$O$33 -> 18 | F22: ='JAC(13)'!$O$33 -> 63 | G22: ='LAW(15)'!$O$33 -> 49 | H22: ='PIK(17)'!$O$33 -> 68 | I22: ='ROS(19)'!$O$33 -> 193 | J22: ='SCI(21)'!$O$33 -> 66 | K22: ='FACILITIES(21)'!P32 -> 5 | L22: =SUM(B22:K22) -> 612 | M22: 642 | N22: 01300 | O22: 612 | P22: EACH | Q22: LANE ARROW, TYPE 1
C23: ='ADA(7)'!$U$33 -> 0 | D23: ='BRO(9)'!$U$33 -> 0 | E23: ='HIG(11)'!$U$33 -> 0 | F23: ='JAC(13)'!$U$33 -> 4 | G23: ='LAW(15)'!$U$33 -> 0 | H23: ='PIK(17)'!$U$33 -> 0 | I23: ='ROS(19)'!$U$33 -> 2 | J23: ='SCI(21)'!$U$33 -> 0 | L23: =SUM(B23:K23) -> 6 | M23: 642 | N23: 01312 | O23: 6 | P23: EACH | Q23: LANE REDUCTION ARROW, TYPE 1
C24: ='ADA(7)'!$V$33 -> 0 | D24: ='BRO(9)'!$V$33 -> 0 | E24: ='HIG(11)'!$V$33 -> 0 | F24: ='JAC(13)'!$V$33 -> 0 | G24: ='LAW(15)'!$V$33 -> 0 | H24: ='PIK(17)'!$V$33 -> 30 | I24: ='ROS(19)'!$V$33 -> 14 | J24: ='SCI(21)'!$V$33 -> 10 | L24: =SUM(B24:K24) -> 54 | M24: 642 | N24: 01352 | O24: 54 | P24: EACH | Q24: TWO WAY LEFT TURN ARROW, TYPE 1
O25: 0
C26: ='ADA(7)'!$W$33 -> 0 | D26: ='BRO(9)'!$W$33 -> 11 | E26: ='HIG(11)'!$W$33 -> 6 | F26: ='JAC(13)'!$W$33 -> 0 | G26: ='LAW(15)'!$W$33 -> 7 | H26: ='PIK(17)'!$W$33 -> 6 | I26: ='ROS(19)'!$W$33 -> 8 | J26: ='SCI(21)'!$W$33 -> 5 | L26: =SUM(B26:K26) -> 43 | M26: 642 | N26: 01410 | O26: 43 | P26: EACH | Q26: WORD ON PAVEMENT, 96", TYPE 1
C27: ='ADA(7)'!$X$33 -> 180 | D27: ='BRO(9)'!$X$33 -> 3313 | E27: ='HIG(11)'!$X$33 -> 0 | F27: ='JAC(13)'!$X$33 -> 5955 | G27: ='LAW(15)'!$X$33 -> 0 | H27: ='PIK(17)'!$X$33 -> 265 | I27: ='ROS(19)'!$X$33 -> 17672 | J27: ='SCI(21)'!$X$33 -> 0 | L27: =SUM(B27:K27) -> 27385 | M27: 642 | N27: 01500 | O27: 27385 | P27: FT | Q27: DOTTED LINE, 4", TYPE 1
C28: ='ADA(7)'!$Z$33 -> 0 | D28: ='BRO(9)'!$Z$33 -> 0 | E28: ='HIG(11)'!$Z$33 -> 0 | F28: ='JAC(13)'!$Z$33 -> 0 | G28: ='LAW(15)'!$Z$33 -> 0 | H28: ='PIK(17)'!$Z$33 -> 0 | I28: ='ROS(19)'!$Z$33 -> 0 | J28: ='SCI(21)'!$Z$33 -> 0 | K28: ='FACILITIES(21)'!Q32 -> 25 | L28: =SUM(B28:K28) -> 25 | M28: 642 | N28: 01702 | O28: 25 | P28: EACH | Q28: HANDICAP SYMBOL MARKING, TYPE 1
L29: LS | M29: 642 | N29: 20000 | O29: LS | P29: LS | Q29: TWO-WAY RADIO EQUIPMENT
C30: ='ADA(7)'!$AA$33 -> 0 | D30: ='BRO(9)'!$AA$33 -> 0 | E30: ='HIG(11)'!$AA$33 -> 154 | F30: ='JAC(13)'!$AA$33 -> 0 | G30: ='LAW(15)'!$AA$33 -> 0 | H30: ='PIK(17)'!$AA$33 -> 0 | I30: ='ROS(19)'!$AA$33 -> 96 | J30: ='SCI(21)'!$AA$33 -> 0 | L30: =SUM(B30:K30) -> 250 | M30: 642 | N30: 20802 | O30: 250 | P30: FT | Q30: YIELD LINE, TYPE 1
O31: 0
B32: 3 | L32: =SUM(B32:K32) -> 3 | M32: 642 | N32: 30020 | O32: 3 | P32: EACH | Q32: REMOVAL OF PAVEMENT MARKING
B33: 100 | L33: =SUM(B33:K33) -> 100 | M33: 644 | N33: 30000 | O33: 100 | P33: FT | Q33: REMOVAL OF PAVEMENT MARKING
B34: 10 | L34: =SUM(B34:K34) -> 10 | M34: 644 | N34: 30020 | O34: 10 | P34: EACH | Q34: REMOVAL OF PAVEMENT MARKING
O35: 0
A36: SHEET 1 | O36: 0 | Q36: INCIDENTALS
L37: LS | M37: 614 | N37: 11000 | O37: LS | P37: LS | Q37: MAINTAINING TRAFFIC
L38: LS | M38: 624 | N38: 10000 | O38: LS | P38: LS | Q38: MOBILIZATION
A43: CLICK HERE FOR THE ITEM MASTER VIA INTRANET

Sheet ADA(6)
A1: ADAMS COUNTY AUXILIARY MARKINGS SUB-SUMMARY
A2: ROUTE | B2: SLM | C2: CHANNELIZING LINE, 8" | D2: CHANNELIZING LINE, 12" | E2: STOP LINE | F2: CROSSWALK LINE, 12" | G2: TRANS. / DIAG. LINE (WHITE) | H2: TRANS. / DIAG. LINE (YELLOW) | I2: CURB MARKING | J2: ISLAND MARKING (YELLOW) | K2: ISLAND MARKING (WHITE) | L2: RAILROAD SYM. | M2: SCHOOL SYM., 96" | N2: PARKING LOT STALL MARKING | O2: LANE ARROW | U2: LANE REDUCTION | V2: TWO-WAY LT TRN | W2: WORD ON PAVE. | X2: DOTTED LINE, 6" (WHITE) | Y2: DOTTED LINE, 6" (YELLOW) | Z2: HANDICAP SYM. | AA2: YIELD LINE | AB2: REMARKS
O3: LEFT TURN | P3: RIGHT TURN | Q3: THRU | R3: COMB - LT/TH | S3: COMB - RT/TH | T3: COMB - LT/RT
C4: FT | D4: FT | E4: FT | F4: FT | G4: FT | H4: FT | I4: FT | J4: SF | K4: SF | L4: EA | M4: EA | N4: FT | O4: EA | P4: EA | Q4: EA | R4: EA | S4: EA | T4: EA | U4: EA | V4: EA | W4: EA | X4: FT | Y4: FT | Z4: EA | AA4: FT
A6: 52 | B6: 7.34 | E6: 48 | F6: 314 | AB6: MANCHESTER
A7: 52 | B7: 7.52 | F7: 110
A8: 52 | B8: 7.56 | E8: 55 | F8: 236
A9: 52 | B9: 7.64 | E9: 25 | F9: 156
A10: 52 | B10: 7.85 | F10: 156
A12: 32 | B12: 1.71 | C12: 792 | E12: 150 | G12: 330 | K12: 416 | O12: 6 | Y12: 180 | AB12: SR 136
A13: 32 | B13: 6.28 | C13: 1081 | E13: 150 | G13: 272 | K13: 379 | O13: 6 | AB13: SR 247
A14: 32 | B14: 19.99 | D14: 1152 | G14: 144 | K14: 226 | O14: 8 | AB14: SR 73
A16: 41 | B16: 25.55 | C16: 285 | H16: 94 | J16: 113 | M16: 2 | O16: 3
A17: 41 | B17: 26.2 | E17: 36 | M17: 2
A18: 41 | B18: 26.32 | F18: 340
A19: 41 | B19: 26.36 | E19: 21 | F19: 172
A20: 41 | B20: 26.48 | C20: 80 | E20: 50 | F20: 172 | P20: 2
A21: 41 | B21: 26.5 | E21: 26 | F21: 86
A22: 41 | B22: 26.53 | E22: 24 | F22: 86
A24: 73 | B24: 7.64 | E24: 19
A25: 73 | B25: 7.903 | E25: 30
A26: 73 | B26: 10.37 | E26: 41
A27: 73 | B27: 13.1 | C27: 55 | E27: 44 | H27: 224 | J27: 57 | O27: 2
A29: 125 | B29: 4.91 | E29: 24 | M29: 1
A30: 125 | B30: 6.23 | M30: 2 | AB30: WEST UNION SCHOOL
A31: 125 | B31: 6.39 | M31: 1
A32: 125 | B32: 8.44 | C32: 75 | E32: 24 | P32: 2 | R32: 2
A33: 125 | B33: 16.34 | F33: 68 | AB33: CROSSWALK
A37: SUBTOTAL THIS SHEET | C37: =SUM(C5:C36) -> 2368 | D37: 1152 | E37: 767 | F37: 1896 | G37: 746 | H37: 318 | I37: 0 | J37: 170 | K37: 1021 | L37: 0 | M37: 8 | N37: 0 | O37: 25 | P37: 4 | Q37: 0 | R37: 2 | S37: 0 | T37: 0 | U37: 0 | V37: 0 | W37: 0 | X37: 0 | Y37: 180 | Z37: 0 | AA37: 0
A38: TOT. CARRIED TO SHEET 7 | C38: =C37 -> 2368 | D38: =D37 -> 1152 | E38: =E37 -> 767 | F38: =F37 -> 1896 | G38: =G37+H37 -> 1064 | I38: =I37 -> 0 | J38: =J37+K37 -> 1191 | L38: =L37 -> 0 | M38: =M37 -> 8 | N38: =N37 -> 0 | O38: =O37+P37+Q37+R37+S37+T37 -> 31 | U38: =U37 -> 0 | V38: =V37 -> 0 | W38: =W37 -> 0 | X38: =X37+Y37 -> 180 | Z38: =Z37 -> 0 | AA38: =AA37 -> 0

Sheet ADA(7)
A1: ADAMS COUNTY AUXILIARY MARKINGS SUB-SUMMARY
A2: ROUTE | B2: SLM | C2: CHANNELIZING LINE, 8" | D2: CHANNELIZING LINE, 12" | E2: STOP LINE | F2: CROSSWALK LINE, 12" | G2: TRANS. / DIAG. LINE (WHITE) | H2: TRANS. / DIAG. LINE (YELLOW) | I2: CURB MARKING | J2: ISLAND MARKING (YELLOW) | K2: ISLAND MARKING (WHITE) | L2: RAILROAD SYM. | M2: SCHOOL SYM., 96" | N2: PARKING LOT STALL MARKING | O2: LANE ARROW | U2: LANE REDUCTION | V2: TWO-WAY LT TRN | W2: WORD ON PAVE. | X2: DOTTED LINE, 6" (WHITE) | Y2: DOTTED LINE, 6" (YELLOW) | Z2: HANDICAP SYM. | AA2: YIELD LINE | AB2: REMARKS
O3: LEFT TURN | P3: RIGHT TURN | Q3: THRU | R3: COMB - LT/TH | S3: COMB - RT/TH | T3: COMB - LT/RT
C4: FT | D4: FT | E4: FT | F4: FT | G4: FT | H4: FT | I4: FT | J4: SF | K4: SF | L4: EA | M4: EA | N4: FT | O4: EA | P4: EA | Q4: EA | R4: EA | S4: EA | T4: EA | U4: EA | V4: EA | W4: EA | X4: FT | Y4: FT | Z4: EA | AA4: FT
A6: 136 | B6: 0 | E6: 48 | F6: 100
A7: 136 | B7: 4.339 | E7: 24
A8: 136 | B8: 5.87 | E8: 25
A9: 136 | B9: 9.4 | E9: 36
A10: 136 | B10: 14.97 | F10: 100
A12: 247 | B12: 17.12 | C12: 184 | E12: 100 | O12: 4
A13: 247 | B13: 17.84
A15: 781 | B15: 0 | E15: 18 | AB15: S.R. 41
A16: 781 | B16: 10.98 | E16: 24 | L16: 2
A31: SUBTOTAL THIS SHEET | C31: =SUM(C5:C30) -> 184 | D31: 0 | E31: 275 | F31: 200 | G31: 0 | H31: 0 | I31: 0 | J31: 0 | K31: 0 | L31: 2 | M31: 0 | N31: 0 | O31: 4 | P31: 0 | Q31: 0 | R31: 0 | S31: 0 | T31: 0 | U31: 0 | V31: 0 | W31: 0 | X31: 0 | Y31: 0 | Z31: 0 | AA31: 0
A32: SHEET 6 TOTALS | C32: ='ADA(6)'!C38 -> 2368 | D32: ='ADA(6)'!D38 -> 1152 | E32: ='ADA(6)'!E38 -> 767 | F32: ='ADA(6)'!F38 -> 1896 | G32: ='ADA(6)'!G38 -> 1064 | I32: ='ADA(6)'!I38 -> 0 | J32: ='ADA(6)'!J38 -> 1191 | L32: ='ADA(6)'!L38 -> 0 | M32: ='ADA(6)'!M38 -> 8 | N32: ='ADA(6)'!N38 -> 0 | O32: ='ADA(6)'!O38 -> 31 | U32: ='ADA(6)'!U38 -> 0 | V32: ='ADA(6)'!V38 -> 0 | W32: ='ADA(6)'!W38 -> 0 | X32: ='ADA(6)'!X38 -> 180 | Z32: ='ADA(6)'!Z38 -> 0 | AA32: ='ADA(6)'!AA38 -> 0
A33: TOT. CARRIED TO GEN. SUM. | C33: =C31+C32 -> 2552 | D33: =D31+D32 -> 1152 | E33: =E31+E32 -> 1042 | F33: =F31+F32 -> 2096 | G33: =G32+G31+H31 -> 1064 | I33: =I31+I32 -> 0 | J33: =J32+J31+K31 -> 1191 | L33: =L31+L32 -> 2 | M33: =M31+M32 -> 8 | N33: =N31+N32 -> 0 | O33: =O32+O31+P31+Q31+R31+S31+T31 -> 35 | U33: =U31+U32 -> 0 | V33: =V31+V32 -> 0 | W33: =W31+W32 -> 0 | X33: =X32+X31+Y31 -> 180 | Z33: =Z31+Z32 -> 0 | AA33: =AA31+AA32 -> 0

Sheet BRO(8)
A1: BROWN COUNTY AUXILIARY MARKINGS SUB-SUMMARY
A2: ROUTE | B2: SLM | C2: CHANNELIZING LINE, 8" | D2: CHANNELIZING LINE, 12" | E2: STOP LINE | F2: CROSSWALK LINE, 12" | G2: TRANS. / DIAG. LINE (WHITE) | H2: TRANS. / DIAG. LINE (YELLOW) | I2: CURB MARKING | J2: ISLAND MARKING (YELLOW) | K2: ISLAND MARKING (WHITE) | L2: RAILROAD SYM. | M2: SCHOOL SYM., 96" | N2: PARKING LOT STALL MARKING | O2: LANE ARROW | U2: LANE REDUCTION | V2: TWO-WAY LT TRN | W2: WORD ON PAVE. | X2: DOTTED LINE, 6" (WHITE) | Y2: DOTTED LINE, 6" (YELLOW) | Z2: HANDICAP SYM. | AA2: YIELD LINE | AB2: REMARKS
O3: LEFT TURN | P3: RIGHT TURN | Q3: THRU | R3: COMB - LT/TH | S3: COMB - RT/TH | T3: COMB - LT/RT
C4: FT | D4: FT | E4: FT | F4: FT | G4: FT | H4: FT | I4: FT | J4: SF | K4: SF | L4: EA | M4: EA | N4: FT | O4: EA | P4: EA | Q4: EA | R4: EA | S4: EA | T4: EA | U4: EA | V4: EA | W4: EA | X4: FT | Y4: FT | Z4: EA | AA4: FT
A5: 32 | B5: 16.04 | X5: 829
A6: 32 | B6: 16.91 | C6: 1635 | E6: 94 | H6: 410 | J6: 369 | O6: 10 | X6: 362 | Y6: 155
A7: 32 | B7: 18.43 | X7: 880
A8: 32 | B8: 19.44 | X8: 1021
A9: 50 | B9: 4.79 | F9: 624 | G9: 30
A10: 52 | B10: 12.3 | E10: 40 | F10: 125
A11: 52 | B11: 12.63 | C11: 366 | H11: 100
A12: 52 | B12: 12.91 | F12: 74 | M12: 2
A13: 52 | B13: 13.73 | M13: 2
A14: 52 | B14: 18.38 | C14: 840 | E14: 48 | H14: 255 | O14: 3 | P14: 3 | Q14: 6
A15: 52 | B15: 19.94 | F15: 200
A16: 52 | B16: 20.55 | E16: 48 | F16: 400
A17: 52 | B17: 20.82 | E17: 36 | G17: 110 | O17: 3 | P17: 2 | Q17: 5
A18: 62 | B18: 13.83 | C18: 502 | E18: 67 | H18: 823 | O18: 2
A19: 62 | B19: 18.29 | E19: 70 | F19: 270
A20: 62 | B20: 18.56 | F20: 80
A21: 62 | B21: 25.07 | M21: 1
A22: 62 | B22: 25.5 | C22: 240 | H22: 464 | J22: 204 | M22: 1 | O22: 4
A23: 62 | B23: 26.28 | L23: 1
A24: 62 | B24: 26.4 | E24: 24 | L24: 1
A25: 62 | B25: 26.52 | E25: 64 | O25: 5
A26: 68 | B26: 11.67 | C26: 128 | O26: 2 | AB26: US 62
A27: 68 | B27: 12.12 | E27: 40 | H27: 1113 | AB27: 4 TO 2 LANE TRANSITION
A28: 68 | B28: 16.65 | C28: 455 | H28: 585 | O28: 4 | W28: 2 | AB28: WORD: "ONLY"
A29: 68 | B29: 17.66 | C29: 210 | H29: 585 | O29: 2 | W29: 1 | AB29: WORD: "ONLY"
A30: 68 | B30: 29.26 | C30: 265 | H30: 196 | J30: 25 | O30: 5
A31: 68 | B31: 29.49 | C31: 53 | H31: 215 | J31: 25 | O31: 2
A32: 68 | B32: 29.73 | C32: 159 | E32: 36 | H32: 426 | L32: 1 | O32: 7 | Q32: 1
A33: 68 | B33: 30.14 | C33: 100 | E33: 82 | F33: 240 | H33: 539 | L33: 1 | O33: 5
A36: SUBTOTAL THIS SHEET | C36: =SUM(C5:C35) -> 4953 | D36: 0 | E36: 649 | F36: 2013 | G36: 140 | H36: 5711 | I36: 0 | J36: 623 | K36: 0 | L36: 4 | M36: 6 | N36: 0 | O36: 54 | P36: 5 | Q36: 12 | R36: 0 | S36: 0 | T36: 0 | U36: 0 | V36: 0 | W36: 3 | X36: 3092 | Y36: 155 | Z36: 0 | AA36: 0
A37: TOT. CARRIED TO SHEET 9 | C37: =C36 -> 4953 | D37: =D36 -> 0 | E37: =E36 -> 649 | F37: =F36 -> 2013 | G37: =G36+H36 -> 5851 | I37: =I36 -> 0 | J37: =J36+K36 -> 623 | L37: =L36 -> 4 | M37: =M36 -> 6 | N37: =N36 -> 0 | O37: =O36+P36+Q36+R36+S36+T36 -> 71 | U37: =U36 -> 0 | V37: =V36 -> 0 | W37: =W36 -> 3 | X37: =X36+Y36 -> 3247 | Z37: =Z36 -> 0 | AA37: =AA36 -> 0

Sheet BRO(9)
A1: BROWN COUNTY AUXILIARY MARKINGS SUB-SUMMARY
A2: ROUTE | B2: SLM | C2: CHANNELIZING LINE, 8" | D2: CHANNELIZING LINE, 12" | E2: STOP LINE | F2: CROSSWALK LINE, 12" | G2: TRANS. / DIAG. LINE (WHITE) | H2: TRANS. / DIAG. LINE (YELLOW) | I2: CURB MARKING | J2: ISLAND MARKING (YELLOW) | K2: ISLAND MARKING (WHITE) | L2: RAILROAD SYM. | M2: SCHOOL SYM., 96" | N2: PARKING LOT STALL MARKING | O2: LANE ARROW | U2: LANE REDUCTION | V2: TWO-WAY LT TRN | W2: WORD ON PAVE. | X2: DOTTED LINE, 6" (WHITE) | Y2: DOTTED LINE, 6" (YELLOW) | Z2: HANDICAP SYM. | AA2: YIELD LINE | AB2: REMARKS
O3: LEFT TURN | P3: RIGHT TURN | Q3: THRU | R3: COMB - LT/TH | S3: COMB - RT/TH | T3: COMB - LT/RT
C4: FT | D4: FT | E4: FT | F4: FT | G4: FT | H4: FT | I4: FT | J4: SF | K4: SF | L4: EA | M4: EA | N4: FT | O4: EA | P4: EA | Q4: EA | R4: EA | S4: EA | T4: EA | U4: EA | V4: EA | W4: EA | X4: FT | Y4: FT | Z4: EA | AA4: FT
A5: 68 | B5: 30.8 | C5: 810 | E5: 74 | H5: 235 | O5: 6 | P5: 4
A6: 68 | B6: 30.99 | C6: 412 | E6: 132 | H6: 180 | J6: 66 | O6: 6
A7: 68 | B7: 31.28 | C7: 260 | E7: 60 | H7: 300 | O7: 5
A8: 68 | B8: 40.57 | M8: 1
A9: 68 | B9: 40.94 | E9: 50 | F9: 280 | G9: 400 | M9: 1
A10: 125 | B10: 8.77 | C10: 290 | O10: 3 | S10: 2 | W10: 3 | AB10: WORD: "ONLY"
A11: 125 | B11: 8.89 | E11: 330 | H11: 2568
A12: 125 | B12: 9.06 | C12: 95 | O12: 2 | S12: 2 | W12: 1 | AB12: WORD: "ONLY"
A13: 125 | B13: 9.4 | C13: 233 | H13: 112 | O13: 8 | W13: 2 | AB13: WORD: "ONLY"
A14: 125 | B14: 10.05 | C14: 106 | H14: 80 | O14: 4 | W14: 2 | AB14: WORD: "ONLY"
A15: 125 | B15: 10.14 | H15: 160 | N15: 66 | X15: 66
A16: 125 | B16: 10.8 | C16: 146 | P16: 2
A17: 125 | B17: 13.16 | E17: 18 | F17: 52
A18: 125 | B18: 15.43 | F18: 52
A19: 125 | B19: 15.86 | E19: 64 | F19: 272
A20: 131 | B20: 2.01 | E20: 100
A21: 131 | B21: 3.89 | E21: 27
A22: 221 | B22: 0 | E22: 12
A23: 221 | B23: 8 | E23: 12
A24: 251 | B24: 0 | E24: 13
A25: 286 | B25: 4.86 | E25: 27
A26: 763 | B26: 0 | E26: 14
A27: 763 | B27: 12.7 | E27: 27
A28: 774 | B28: 3.25 | E28: 43 | F28: 286
A29: 774 | B29: 10.93 | E29: 17
A31: SUBTOTAL THIS SHEET | C31: =SUM(C5:C30) -> 2352 | D31: 0 | E31: 1020 | F31: 942 | G31: 400 | H31: 3635 | I31: 0 | J31: 66 | K31: 0 | L31: 0 | M31: 2 | N31: 66 | O31: 34 | P31: 6 | Q31: 0 | R31: 0 | S31: 4 | T31: 0 | U31: 0 | V31: 0 | W31: 8 | X31: =SUM(X5:X30) -> 66 | Y31: 0 | Z31: 0 | AA31: 0
A32: SHEET 8 TOTALS | C32: ='BRO(8)'!C37 -> 4953 | D32: ='BRO(8)'!D37 -> 0 | E32: ='BRO(8)'!E37 -> 649 | F32: ='BRO(8)'!F37 -> 2013 | G32: ='BRO(8)'!G37 -> 5851 | I32: ='BRO(8)'!I37 -> 0 | J32: ='BRO(8)'!J37 -> 623 | L32: ='BRO(8)'!L37 -> 4 | M32: ='BRO(8)'!M37 -> 6 | N32: ='BRO(8)'!N37 -> 0 | O32: ='BRO(8)'!O37 -> 71 | U32: ='BRO(8)'!U37 -> 0 | V32: ='BRO(8)'!V37 -> 0 | W32: ='BRO(8)'!W37 -> 3 | X32: ='BRO(8)'!X37 -> 3247 | Z32: ='BRO(8)'!Z37 -> 0 | AA32: ='BRO(8)'!AA37 -> 0
A33: TOT. CARRIED TO GEN. SUM. | C33: =C31+C32 -> 7305 | D33: =D31+D32 -> 0 | E33: =E31+E32 -> 1669 | F33: =F31+F32 -> 2955 | G33: =G32+G31+H31 -> 9886 | I33: =I31+I32 -> 0 | J33: =J32+J31+K31 -> 689 | L33: =L31+L32 -> 4 | M33: =M31+M32 -> 8 | N33: =N31+N32 -> 66 | O33: =O32+O31+P31+Q31+R31+S31+T31 -> 115 | U33: =U31+U32 -> 0 | V33: =V31+V32 -> 0 | W33: =W31+W32 -> 11 | X33: =X32+X31+Y31 -> 3313 | Z33: =Z31+Z32 -> 0 | AA33: =AA31+AA32 -> 0

Sheet HIG(10)
A1: HIGHLAND COUNTY AUXILIARY MARKINGS SUB-SUMMARY
A2: ROUTE | B2: SLM | C2: CHANNELIZING LINE, 8" | D2: CHANNELIZING LINE, 12" | E2: STOP LINE | F2: CROSSWALK LINE, 12" | G2: TRANS. / DIAG. LINE (WHITE) | H2: TRANS. / DIAG. LINE (YELLOW) | I2: CURB MARKING | J2: ISLAND MARKING (YELLOW) | K2: ISLAND MARKING (WHITE) | L2: RAILROAD SYM. | M2: SCHOOL SYM., 96" | N2: PARKING LOT STALL MARKING | O2: LANE ARROW | U2: LANE REDUCTION | V2: TWO-WAY LT TRN | W2: WORD ON PAVE. | X2: DOTTED LINE, 6" (WHITE) | Y2: DOTTED LINE, 6" (YELLOW) | Z2: HANDICAP SYM. | AA2: YIELD LINE | AB2: REMARKS
O3: LEFT TURN | P3: RIGHT TURN | Q3: THRU | R3: COMB - LT/TH | S3: COMB - RT/TH | T3: COMB - LT/RT
C4: FT | D4: FT | E4: FT | F4: FT | G4: FT | H4: FT | I4: FT | J4: SF | K4: SF | L4: EA | M4: EA | N4: FT | O4: EA | P4: EA | Q4: EA | R4: EA | S4: EA | T4: EA | U4: EA | V4: EA | W4: EA | X4: FT | Y4: FT | Z4: EA | AA4: FT
A5: 28 | B5: 4.42 | E5: 28 | F5: 120
A6: 28 | B6: 6.49 | C6: 280 | E6: 48 | P6: 4
A7: 28 | B7: 6.79 | E7: 60 | F7: 288
A8: 28 | B8: 15.68 | F8: 102 | AA8: 102
A9: 28 | B9: 15.85 | F9: 102
A10: 28 | B10: 16.03 | F10: 200
A11: 28 | B11: 16.16 | C11: 165 | E11: 74 | F11: 156 | H11: 50 | O11: 4 | W11: 2 | AB11: WORD: "ONLY"
A12: 28 | B12: 16.22 | M12: 1
A13: 28 | B13: 16.28 | E13: 77 | F13: 296
A14: 28 | B14: 16.39 | E14: 96 | F14: 372
A15: 28 | B15: 16.43 | M15: 1
A16: 28 | B16: 16.5 | F16: 208
A17: 28 | B17: 16.55 | F17: 104 | AA17: 52
A18: 28 | B18: 16.61 | C18: 165 | E18: 123 | F18: 400 | H18: 70 | W18: 2 | AB18: WORD: "ONLY"
A19: 28 | B19: 16.66 | F19: 102
A20: 28 | B20: 16.69 | O20: 2
A21: 28 | B21: 16.72 | F21: 202
A22: 28 | B22: 16.73 | O22: 4
A23: 28 | B23: 16.83 | C23: 125 | H23: 125 | P23: 2 | W23: 1 | AB23: WORD: "ONLY"
A24: 28 | B24: 16.86 | H24: 80
A25: 41 | B25: 1.42 | E25: 48 | F25: 168
A26: 50 | B26: 24.35 | F26: 120
A36: SUBTOTAL THIS SHEET | C36: =SUM(C5:C35) -> 735 | D36: 0 | E36: 554 | F36: 2940 | G36: 0 | H36: 325 | I36: 0 | J36: 0 | K36: 0 | L36: 0 | M36: 2 | N36: 0 | O36: 10 | P36: 6 | Q36: 0 | R36: 0 | S36: 0 | T36: 0 | U36: 0 | V36: 0 | W36: 5 | X36: 0 | Y36: 0 | Z36: 0 | AA36: 154
A37: TOT. CARRIED TO SHEET 11 | C37: =C36 -> 735 | D37: =D36 -> 0 | E37: =E36 -> 554 | F37: =F36 -> 2940 | G37: =G36+H36 -> 325 | I37: =I36 -> 0 | J37: =J36+K36 -> 0 | L37: =L36 -> 0 | M37: =M36 -> 2 | N37: =N36 -> 0 | O37: =O36+P36+Q36+R36+S36+T36 -> 16 | U37: =U36 -> 0 | V37: =V36 -> 0 | W37: =W36 -> 5 | X37: =X36+Y36 -> 0 | Z37: =Z36 -> 0 | AA37: =AA36 -> 154

Sheet HIG(11)
A1: HIGHLAND COUNTY AUXILIARY MARKINGS SUB-SUMMARY
A2: ROUTE | B2: SLM | C2: CHANNELIZING LINE, 8" | D2: CHANNELIZING LINE, 12" | E2: STOP LINE | F2: CROSSWALK LINE, 12" | G2: TRANS. / DIAG. LINE (WHITE) | H2: TRANS. / DIAG. LINE (YELLOW) | I2: CURB MARKING | J2: ISLAND MARKING (YELLOW) | K2: ISLAND MARKING (WHITE) | L2: RAILROAD SYM. | M2: SCHOOL SYM., 96" | N2: PARKING LOT STALL MARKING | O2: LANE ARROW | U2: LANE REDUCTION | V2: TWO-WAY LT TRN | W2: WORD ON PAVE. | X2: DOTTED LINE, 6" (WHITE) | Y2: DOTTED LINE, 6" (YELLOW) | Z2: HANDICAP SYM. | AA2: YIELD LINE | AB2: REMARKS
O3: LEFT TURN | P3: RIGHT TURN | Q3: THRU | R3: COMB - LT/TH | S3: COMB - RT/TH | T3: COMB - LT/RT
C4: FT | D4: FT | E4: FT | F4: FT | G4: FT | H4: FT | I4: FT | J4: SF | K4: SF | L4: EA | M4: EA | N4: FT | O4: EA | P4: EA | Q4: EA | R4: EA | S4: EA | T4: EA | U4: EA | V4: EA | W4: EA | X4: FT | Y4: FT | Z4: EA | AA4: FT
A5: 124 | B5: 13.98 | C5: 106 | E5: 17 | H5: 565 | J5: 60 | O5: 2 | W5: 1 | AB5: WORD: "ONLY"
A6: 124 | B6: 17.82 | E6: 22
A7: 124 | B7: 21.42 | E7: 11
A8: 124 | B8: 23.82 | E8: 18
A9: 124 | B9: 25.92 | E9: 13
A10: 131 | B10: 1.42 | E10: 60 | AB10: SR 138
A11: 131 | B11: 7.07 | E11: 11
A12: 135 | B12: 0 | E12: 21
A13: 135 | B13: 2.3 | M13: 2 | AB13: LYNCGBURG SCHOOLS
A14: 135 | B14: 2.67 | E14: 12 | F14: 65
A15: 135 | B15: 2.82 | E15: 12
A16: 136 | B16: 3.62 | E16: 25 | AB16: FAIR RIDGE RD
A17: 136 | B17: 7.21 | E17: 15 | AB17: US 62
A18: 138 | B18: 7.03 | E18: 12
A19: 138 | B19: 7.49 | E19: 24
A20: 138 | B20: 23.34 | M20: 2
A21: 286 | B21: 1.36 | E21: 18 | AB21: SR 134
A22: 506 | B22: 0 | E22: 10
A23: 506 | B23: 4.34 | E23: 12
A24: 753 | B24: 0 | E24: 16 | AB24: SR 41
A25: 753 | B25: 7.1 | E25: 16 | AB25: US 50
A26: 753 | B26: 8.03 | E26: 16
A31: SUBTOTAL THIS SHEET | C31: =SUM(C5:C30) -> 106 | D31: 0 | E31: 361 | F31: 65 | G31: 0 | H31: 565 | I31: 0 | J31: 60 | K31: 0 | L31: 0 | M31: 4 | N31: 0 | O31: 2 | P31: 0 | Q31: 0 | R31: 0 | S31: 0 | T31: 0 | U31: 0 | V31: 0 | W31: 1 | X31: =SUM(X5:X30) -> 0 | Y31: 0 | Z31: 0 | AA31: 0
A32: SHEET 10 TOTALS | C32: ='HIG(10)'!C37 -> 735 | D32: ='HIG(10)'!D37 -> 0 | E32: ='HIG(10)'!E37 -> 554 | F32: ='HIG(10)'!F37 -> 2940 | G32: ='HIG(10)'!G37 -> 325 | I32: ='HIG(10)'!I37 -> 0 | J32: ='HIG(10)'!J37 -> 0 | L32: ='HIG(10)'!L37 -> 0 | M32: ='HIG(10)'!M37 -> 2 | N32: ='HIG(10)'!N37 -> 0 | O32: ='HIG(10)'!O37 -> 16 | U32: ='HIG(10)'!U37 -> 0 | V32: ='HIG(10)'!V37 -> 0 | W32: ='HIG(10)'!W37 -> 5 | X32: ='HIG(10)'!X37 -> 0 | Z32: ='HIG(10)'!Z37 -> 0 | AA32: ='HIG(10)'!AA37 -> 154
A33: TOT. CARRIED TO GEN. SUM. | C33: =C31+C32 -> 841 | D33: =D31+D32 -> 0 | E33: =E31+E32 -> 915 | F33: =F31+F32 -> 3005 | G33: =G32+G31+H31 -> 890 | I33: =I31+I32 -> 0 | J33: =J32+J31+K31 -> 60 | L33: =L31+L32 -> 0 | M33: =M31+M32 -> 6 | N33: =N31+N32 -> 0 | O33: =O32+O31+P31+Q31+R31+S31+T31 -> 18 | U33: =U31+U32 -> 0 | V33: =V31+V32 -> 0 | W33: =W31+W32 -> 6 | X33: =X32+X31+Y31 -> 0 | Z33: =Z31+Z32 -> 0 | AA33: =AA31+AA32 -> 154

Sheet JAC(12)
A1: JACKSON COUNTY AUXILIARY MARKINGS SUB-SUMMARY
A2: ROUTE | B2: SLM | C2: CHANNELIZING LINE, 8" | D2: CHANNELIZING LINE, 12" | E2: STOP LINE | F2: CROSSWALK LINE, 12" | G2: TRANS. / DIAG. LINE (WHITE) | H2: TRANS. / DIAG. LINE (YELLOW) | I2: CURB MARKING | J2: ISLAND MARKING (YELLOW) | K2: ISLAND MARKING (WHITE) | L2: RAILROAD SYM. | M2: SCHOOL SYM., 96" | N2: PARKING LOT STALL MARKING | O2: LANE ARROW | U2: LANE REDUCTION | V2: TWO-WAY LT TRN | W2: WORD ON PAVE. | X2: DOTTED LINE, 6" (WHITE) | Y2: DOTTED LINE, 6" (YELLOW) | Z2: HANDICAP SYM. | AA2: YIELD LINE | AB2: REMARKS
O3: LEFT TURN | P3: RIGHT TURN | Q3: THRU | R3: COMB - LT/TH | S3: COMB - RT/TH | T3: COMB - LT/RT
C4: FT | D4: FT | E4: FT | F4: FT | G4: FT | H4: FT | I4: FT | J4: SF | K4: SF | L4: EA | M4: EA | N4: FT | O4: EA | P4: EA | Q4: EA | R4: EA | S4: EA | T4: EA | U4: EA | V4: EA | W4: EA | X4: FT | Y4: FT | Z4: EA | AA4: FT
A5: 32 | B5: 10.05 | E5: 116 | G5: 136 | H5: 209 | J5: 28 | K5: 154 | O5: 6
A6: 32 | B6: 10.69 | D6: 313
A7: 32 | B7: 10.74 | D7: 674 | E7: 63
A8: 32 | B8: 10.99 | D8: 293
A9: 32 | B9: 11.41 | D9: 436 | E9: 65
A10: 32 | B10: 12.409 | O10: 1
A11: 32 | B11: 13.07 | C11: 100 | O11: 2 | X11: 330
A12: 32 | B12: 13.66 | C12: 100 | O12: 2 | X12: 310
A13: 32 | B13: 14.53 | C13: 100 | O13: 2 | X13: 370
A14: 32 | B14: 15.93 | C14: 100 | O14: 2 | X14: 360
A15: 32 | B15: 16.94 | C15: 1560 | E15: 135
A16: 32 | B16: 17.39 | C16: 275 | E16: 57
A17: 32 | B17: 18.33 | C17: 138 | O17: 4
A18: 32 | B18: 19.02 | C18: 77 | O18: 2
A19: 32 | B19: 19.59 | C19: 140 | O19: 4
A20: 32 | B20: 21.59 | C20: 117 | O20: 4
A21: 32 | B21: 22.46 | C21: 82 | O21: 2
A22: 32 | B22: 22.65 | C22: 182 | O22: 4
A23: 32 | B23: 23.32 | C23: 80 | O23: 2
A25: 35 | B25: 11.23 | D25: 1152 | E25: 30
A26: 35 | B26: 11.62 | D26: 1246 | E26: 38 | X26: 1450
A27: 35 | B27: 12.59 | E27: 88
A28: 35 | B28: 14.53 | D28: 1040 | H28: 160 | O28: 11 | X28: 315
A29: 35 | B29: 18.14 | D29: 2215 | H29: 210 | J29: 50 | O29: 8 | P29: 3 | U29: 4 | X29: 2520 | Y29: 300
A36: SUBTOTAL THIS SHEET | C36: =SUM(C5:C35) -> 3051 | D36: 7369 | E36: 592 | F36: 0 | G36: 136 | H36: 579 | I36: 0 | J36: 78 | K36: 154 | L36: 0 | M36: 0 | N36: 0 | O36: 56 | P36: 3 | Q36: 0 | R36: 0 | S36: 0 | T36: 0 | U36: 4 | V36: 0 | W36: 0 | X36: 5655 | Y36: 300 | Z36: 0 | AA36: 0
A37: TOT. CARRIED TO SHEET 13 | C37: =C36 -> 3051 | D37: =D36 -> 7369 | E37: =E36 -> 592 | F37: =F36 -> 0 | G37: =G36+H36 -> 715 | I37: =I36 -> 0 | J37: =J36+K36 -> 232 | L37: =L36 -> 0 | M37: =M36 -> 0 | N37: =N36 -> 0 | O37: =O36+P36+Q36+R36+S36+T36 -> 59 | U37: =U36 -> 4 | V37: =V36 -> 0 | W37: =W36 -> 0 | X37: =X36+Y36 -> 5955 | Z37: =Z36 -> 0 | AA37: =AA36 -> 0

Sheet JAC(13)
A1: JACKSON COUNTY AUXILIARY MARKINGS SUB-SUMMARY
A2: ROUTE | B2: SLM | C2: CHANNELIZING LINE, 8" | D2: CHANNELIZING LINE, 12" | E2: STOP LINE | F2: CROSSWALK LINE, 12" | G2: TRANS. / DIAG. LINE (WHITE) | H2: TRANS. / DIAG. LINE (YELLOW) | I2: CURB MARKING | J2: ISLAND MARKING (YELLOW) | K2: ISLAND MARKING (WHITE) | L2: RAILROAD SYM. | M2: SCHOOL SYM., 96" | N2: PARKING LOT STALL MARKING | O2: LANE ARROW | U2: LANE REDUCTION | V2: TWO-WAY LT TRN | W2: WORD ON PAVE. | X2: DOTTED LINE, 6" (WHITE) | Y2: DOTTED LINE, 6" (YELLOW) | Z2: HANDICAP SYM. | AA2: YIELD LINE | AB2: REMARKS
O3: LEFT TURN | P3: RIGHT TURN | Q3: THRU | R3: COMB - LT/TH | S3: COMB - RT/TH | T3: COMB - LT/RT
C4: FT | D4: FT | E4: FT | F4: FT | G4: FT | H4: FT | I4: FT | J4: SF | K4: SF | L4: EA | M4: EA | N4: FT | O4: EA | P4: EA | Q4: EA | R4: EA | S4: EA | T4: EA | U4: EA | V4: EA | W4: EA | X4: FT | Y4: FT | Z4: EA | AA4: FT
A6: 93 | B6: 4.85 | M6: 1
A7: 93 | B7: 5 | M7: 1
A8: 93 | B8: 6.69 | E8: 24 | L8: 2
A9: 93 | B9: 18.13 | H9: 136
A10: 93 | B10: 18.19 | C10: 345 | H10: 386 | O10: 4
A11: 93 | B11: 21.29 | F11: 120
A12: 93 | B12: 21.35 | E12: 14 | F12: 124
A14: 233 | B14: 0 | E14: 16 | F14: 90
A15: 233 | B15: 0.07 | E15: 14
A16: 327 | B16: 0 | E16: 14
A17: 327 | B17: 0.1 | E17: 17
A18: 327 | B18: 6.74 | E18: 24
A19: 327 | B19: 17.71 | E19: 24 | L19: 2
A21: 776 | B21: 7.83 | E21: 88 | AB21: SR 32
A31: SUBTOTAL THIS SHEET | C31: =SUM(C5:C30) -> 345 | D31: 0 | E31: 235 | F31: 334 | G31: 0 | H31: 522 | I31: 0 | J31: 0 | K31: 0 | L31: 4 | M31: 2 | N31: 0 | O31: 4 | P31: 0 | Q31: 0 | R31: 0 | S31: 0 | T31: 0 | U31: 0 | V31: 0 | W31: 0 | X31: =SUM(X5:X30) -> 0 | Y31: 0 | Z31: =SUM(Z5:Z30) -> 0 | AA31: =SUM(AA5:AA30) -> 0
A32: SHEET 12 TOTALS | C32: ='JAC(12)'!C37 -> 3051 | D32: ='JAC(12)'!D37 -> 7369 | E32: ='JAC(12)'!E37 -> 592 | F32: ='JAC(12)'!F37 -> 0 | G32: ='JAC(12)'!G37 -> 715 | I32: ='JAC(12)'!I37 -> 0 | J32: ='JAC(12)'!J37 -> 232 | L32: ='JAC(12)'!L37 -> 0 | M32: ='JAC(12)'!M37 -> 0 | N32: ='JAC(12)'!N37 -> 0 | O32: ='JAC(12)'!O37 -> 59 | U32: ='JAC(12)'!U37 -> 4 | V32: ='JAC(12)'!V37 -> 0 | W32: ='JAC(12)'!W37 -> 0 | X32: ='JAC(12)'!X37 -> 5955 | Z32: ='JAC(12)'!Z37 -> 0 | AA32: ='JAC(12)'!AA37 -> 0
A33: TOT. CARRIED TO GEN. SUM. | C33: =C31+C32 -> 3396 | D33: =D31+D32 -> 7369 | E33: =E31+E32 -> 827 | F33: =F31+F32 -> 334 | G33: =G32+G31+H31 -> 1237 | I33: =I31+I32 -> 0 | J33: =J32+J31+K31 -> 232 | L33: =L31+L32 -> 4 | M33: =M31+M32 -> 2 | N33: =N31+N32 -> 0 | O33: =O32+O31+P31+Q31+R31+S31+T31 -> 63 | U33: =U31+U32 -> 4 | V33: =V31+V32 -> 0 | W33: =W31+W32 -> 0 | X33: =X32+X31+Y31 -> 5955 | Z33: =Z31+Z32 -> 0 | AA33: =AA31+AA32 -> 0

Sheet LAW(14)
A1: LAWRENCE COUNTY AUXILIARY MARKINGS SUB-SUMMARY
A2: ROUTE | B2: SLM | C2: CHANNELIZING LINE, 8" | D2: CHANNELIZING LINE, 12" | E2: STOP LINE | F2: CROSSWALK LINE, 12" | G2: TRANS. / DIAG. LINE (WHITE) | H2: TRANS. / DIAG. LINE (YELLOW) | I2: CURB MARKING | J2: ISLAND MARKING (YELLOW) | K2: ISLAND MARKING (WHITE) | L2: RAILROAD SYM. | M2: SCHOOL SYM., 96" | N2: PARKING LOT STALL MARKING | O2: LANE ARROW | U2: LANE REDUCTION | V2: TWO-WAY LT TRN | W2: WORD ON PAVE. | X2: DOTTED LINE, 6" (WHITE) | Y2: DOTTED LINE, 6" (YELLOW) | Z2: HANDICAP SYM. | AA2: YIELD LINE | AB2: REMARKS
O3: LEFT TURN | P3: RIGHT TURN | Q3: THRU | R3: COMB - LT/TH | S3: COMB - RT/TH | T3: COMB - LT/RT
C4: FT | D4: FT | E4: FT | F4: FT | G4: FT | H4: FT | I4: FT | J4: SF | K4: SF | L4: EA | M4: EA | N4: FT | O4: EA | P4: EA | Q4: EA | R4: EA | S4: EA | T4: EA | U4: EA | V4: EA | W4: EA | X4: FT | Y4: FT | Z4: EA | AA4: FT
A6: 52 | B6: 4.19 | D6: 1585 | E6: 94
A7: 52 | B7: 19.93 | D7: 1231 | E7: 91 | O7: 6 | P7: 2
A8: 52 | B8: 20.5 | D8: 1365 | E8: 110 | O8: 8 | P8: 2
A9: 52 | B9: 21.05 | D9: 530 | E9: 80 | O9: 4
A10: 52 | B10: 21.52 | D10: 1035 | E10: 111 | O10: 4 | P10: 2 | Q10: 1
A11: 52 | B11: 22.32 | D11: 2162 | E11: 62 | G11: 404
A13: 7 | B13: 1.4 | D13: 1823 | E13: 42
A14: 7 | B14: 2.19 | D14: 418 | E14: 24
A15: 7 | B15: 2.28 | D15: 605 | E15: 20 | F15: 32 | O15: 1
A17: 93 | B17: 3.3 | C17: 100 | E17: 26 | O17: 1 | W17: 1 | AB17: WORD: "ONLY", CR 7
A18: 93 | B18: 3.35 | H18: 1179 | AB18: 4 TO 2 LANE TRANSITION
A20: 141 | B20: 3.96 | M20: 2 | AB20: SUGAR CREEK SCHOOL
A21: 141 | B21: 4.2 | M21: 2 | AB21: SYMMES VALLEY SCHOOL
A23: 217 | B23: 0 | E23: 12
A24: 217 | B24: 10.67 | E24: 20 | AB24: SR 775
A25: 217 | B25: 13.54 | E25: 14 | AB25: SR 216
A26: 217 | B26: 17.53 | E26: 16 | AB26: SR 7
A36: SUBTOTAL THIS SHEET | C36: =SUM(C5:C35) -> 100 | D36: 10754 | E36: 722 | F36: 32 | G36: 404 | H36: 1179 | I36: 0 | J36: 0 | K36: 0 | L36: 0 | M36: 4 | N36: 0 | O36: 24 | P36: 6 | Q36: 1 | R36: 0 | S36: 0 | T36: 0 | U36: 0 | V36: 0 | W36: 1 | X36: 0 | Y36: 0 | Z36: 0 | AA36: 0
A37: TOT. CARRIED TO SHEET 15 | C37: =C36 -> 100 | D37: =D36 -> 10754 | E37: =E36 -> 722 | F37: =F36 -> 32 | G37: =G36+H36 -> 1583 | I37: =I36 -> 0 | J37: =J36+K36 -> 0 | L37: =L36 -> 0 | M37: =M36 -> 4 | N37: =N36 -> 0 | O37: =O36+P36+Q36+R36+S36+T36 -> 31 | U37: =U36 -> 0 | V37: =V36 -> 0 | W37: =W36 -> 1 | X37: =X36+Y36 -> 0 | Z37: =Z36 -> 0 | AA37: =AA36 -> 0

Sheet LAW(15)
A1: LAWRENCE COUNTY AUXILIARY MARKINGS SUB-SUMMARY
A2: ROUTE | B2: SLM | C2: CHANNELIZING LINE, 8" | D2: CHANNELIZING LINE, 12" | E2: STOP LINE | F2: CROSSWALK LINE, 12" | G2: TRANS. / DIAG. LINE (WHITE) | H2: TRANS. / DIAG. LINE (YELLOW) | I2: CURB MARKING | J2: ISLAND MARKING (YELLOW) | K2: ISLAND MARKING (WHITE) | L2: RAILROAD SYM. | M2: SCHOOL SYM., 96" | N2: PARKING LOT STALL MARKING | O2: LANE ARROW | U2: LANE REDUCTION | V2: TWO-WAY LT TRN | W2: WORD ON PAVE. | X2: DOTTED LINE, 6" (WHITE) | Y2: DOTTED LINE, 6" (YELLOW) | Z2: HANDICAP SYM. | AA2: YIELD LINE | AB2: REMARKS
O3: LEFT TURN | P3: RIGHT TURN | Q3: THRU | R3: COMB - LT/TH | S3: COMB - RT/TH | T3: COMB - LT/RT
C4: FT | D4: FT | E4: FT | F4: FT | G4: FT | H4: FT | I4: FT | J4: SF | K4: SF | L4: EA | M4: EA | N4: FT | O4: EA | P4: EA | Q4: EA | R4: EA | S4: EA | T4: EA | U4: EA | V4: EA | W4: EA | X4: FT | Y4: FT | Z4: EA | AA4: FT
A6: 243 | B6: 0.36 | M6: 1
A7: 243 | B7: 0.47 | E7: 36 | F7: 248
A8: 243 | B8: 0.61 | E8: 36 | F8: 216 | M8: 1
A9: 243 | B9: 4.5 | M9: 2
A10: 243 | B10: 11.55 | E10: 30 | M10: 1
A12: 373 | B12: 0 | E12: 14
A13: 373 | B13: 3.39 | E13: 15 | AB13: SR 93
A15: 522 | B15: 8.29 | E15: 23
A17: 527 | B17: 0.19 | C17: 505 | E17: 70 | O17: 5 | Q17: 2 | S17: 5
A18: 527 | B18: 0.41 | C18: 900
A20: 650 | B20: 9.28 | E20: 35
A22: 775 | B22: 0.33 | C22: 370 | E22: 24 | G22: 60 | H22: 560 | S22: 6 | W22: 6 | AB22: WORD: "ONLY"
A24: 790 | B24: 0 | E24: 13 | AB24: SR 775
A31: SUBTOTAL THIS SHEET | C31: =SUM(C5:C30) -> 1775 | D31: 0 | E31: 296 | F31: 464 | G31: 60 | H31: 560 | I31: 0 | J31: 0 | K31: 0 | L31: 0 | M31: 5 | N31: 0 | O31: 5 | P31: 0 | Q31: 2 | R31: 0 | S31: 11 | T31: 0 | U31: 0 | V31: 0 | W31: 6 | X31: =SUM(X5:X30) -> 0 | Y31: 0 | Z31: =SUM(Z5:Z30) -> 0 | AA31: =SUM(AA5:AA30) -> 0
A32: SHEET 14 TOTALS | C32: ='LAW(14)'!C37 -> 100 | D32: ='LAW(14)'!D37 -> 10754 | E32: ='LAW(14)'!E37 -> 722 | F32: ='LAW(14)'!F37 -> 32 | G32: ='LAW(14)'!G37 -> 1583 | I32: ='LAW(14)'!I37 -> 0 | J32: ='LAW(14)'!J37 -> 0 | L32: ='LAW(14)'!L37 -> 0 | M32: ='LAW(14)'!M37 -> 4 | N32: ='LAW(14)'!N37 -> 0 | O32: ='LAW(14)'!O37 -> 31 | U32: ='LAW(14)'!U37 -> 0 | V32: ='LAW(14)'!V37 -> 0 | W32: ='LAW(14)'!W37 -> 1 | X32: ='LAW(14)'!X37 -> 0 | Z32: ='LAW(14)'!Z37 -> 0 | AA32: ='LAW(14)'!AA37 -> 0
A33: TOT. CARRIED TO GEN. SUM. | C33: =C31+C32 -> 1875 | D33: =D31+D32 -> 10754 | E33: =E31+E32 -> 1018 | F33: =F31+F32 -> 496 | G33: =G32+G31+H31 -> 2203 | I33: =I31+I32 -> 0 | J33: =J32+J31+K31 -> 0 | L33: =L31+L32 -> 0 | M33: =M31+M32 -> 9 | N33: =N31+N32 -> 0 | O33: =O32+O31+P31+Q31+R31+S31+T31 -> 49 | U33: =U31+U32 -> 0 | V33: =V31+V32 -> 0 | W33: =W31+W32 -> 7 | X33: =X32+X31+Y31 -> 0 | Z33: =Z31+Z32 -> 0 | AA33: =AA31+AA32 -> 0

Sheet PIK(16)
A1: PIKE COUNTY AUXILIARY MARKINGS SUB-SUMMARY
A2: ROUTE | B2: SLM | C2: CHANNELIZING LINE, 8" | D2: CHANNELIZING LINE, 12" | E2: STOP LINE | F2: CROSSWALK LINE, 12" | G2: TRANS. / DIAG. LINE (WHITE) | H2: TRANS. / DIAG. LINE (YELLOW) | I2: CURB MARKING | J2: ISLAND MARKING (YELLOW) | K2: ISLAND MARKING (WHITE) | L2: RAILROAD SYM. | M2: SCHOOL SYM., 96" | N2: PARKING LOT STALL MARKING | O2: LANE ARROW | U2: LANE REDUCTION | V2: TWO-WAY LT TRN | W2: WORD ON PAVE. | X2: DOTTED LINE, 6" (WHITE) | Y2: DOTTED LINE, 6" (YELLOW) | Z2: HANDICAP SYM. | AA2: YIELD LINE | AB2: REMARKS
O3: LEFT TURN | P3: RIGHT TURN | Q3: THRU | R3: COMB - LT/TH | S3: COMB - RT/TH | T3: COMB - LT/RT
C4: FT | D4: FT | E4: FT | F4: FT | G4: FT | H4: FT | I4: FT | J4: SF | K4: SF | L4: EA | M4: EA | N4: FT | O4: EA | P4: EA | Q4: EA | R4: EA | S4: EA | T4: EA | U4: EA | V4: EA | W4: EA | X4: FT | Y4: FT | Z4: EA | AA4: FT
A6: 23 | B6: 11.12 | C6: 659 | E6: 191 | H6: 446 | J6: 96 | O6: 6 | P6: 6 | AB6: SECOND ST
A7: 23 | B7: 11.49 | C7: 327 | E7: 50 | H7: 379 | J7: 56 | O7: 6 | AB7: PRIDE DR
A8: 23 | B8: 11.7 | C8: 205 | H8: 136 | O8: 4
A9: 23 | B9: 11.76 | C9: 700 | O9: 6
A10: 23 | B10: 11.85 | C10: 370 | E10: 104 | F10: 160 | H10: 695 | O10: 4 | W10: 2 | AB10: WORD: "ONLY", SR 104
A11: 23 | B11: 11.93 | E11: 28 | F11: 72 | V11: 2
A12: 23 | B12: 12.04 | D12: 104 | E12: 54 | F12: 110 | O12: 2 | V12: 1 | AB12: VICTORY DR
A13: 23 | B13: 12.21 | E13: 50 | O13: 2 | AB13: FORD AVE
A14: 23 | B14: 12.32 | O14: 2
A15: 23 | B15: 12.4 | D15: 432 | E15: 200 | F15: 420 | H15: 360 | O15: 5 | V15: 1 | W15: 3 | AB15: WORD, "ONLY", LOCK & SR 220
A16: 23 | B16: 12.54 | D16: 96 | E16: 114 | F16: 230 | O16: 2 | V16: 1 | AB16: HIGH ST
A17: 23 | B17: 12.62 | D17: 96 | E17: 114 | F17: 228 | O17: 2 | V17: 1 | AB17: EAST ST
A18: 23 | B18: 12.71 | D18: 127 | E18: 118 | F18: 266 | O18: 2 | V18: 2 | AB18: SR 335
A19: 23 | B19: 12.84 | D19: 194 | H19: 40 | O19: 2 | V19: 1 | AB19: SALISBURY RD
A20: 23 | B20: 12.96 | D20: 420 | E20: 67 | H20: 309 | J20: 30 | O20: 2 | P20: 2 | AB20: KROGER
A21: 23 | B21: 13.07 | D21: 180 | H21: 90 | J21: 30 | O21: 2 | AB21: KROGER NORTH ENT.
A22: 23 | B22: 13.15 | V22: 21 | AB22: WAVERLY TO CTY LINE
A24: 32 | B24: 1.98 | C24: 160 | E24: 70 | O24: 4 | X24: 265 | AB24: GOFF RD
A26: 104 | B26: 12.6 | D26: 60 | E26: 33 | G26: 75 | O26: 4
A28: 124 | B28: 7.73 | M28: 1
A29: 124 | B29: 8.41 | M29: 1
A30: 124 | B30: 17.12 | E30: 15
A37: SUBTOTAL THIS SHEET | C37: =SUM(C5:C36) -> 2421 | D37: 1709 | E37: 1208 | F37: 1486 | G37: 75 | H37: 2455 | I37: 0 | J37: 212 | K37: 0 | L37: 0 | M37: 2 | N37: 0 | O37: 57 | P37: 8 | Q37: 0 | R37: 0 | S37: 0 | T37: 0 | U37: 0 | V37: 30 | W37: 5 | X37: 265 | Y37: 0 | Z37: 0 | AA37: 0
A38: TOT. CARRIED TO SHEET 17 | C38: =C37 -> 2421 | D38: =D37 -> 1709 | E38: =E37 -> 1208 | F38: =F37 -> 1486 | G38: =G37+H37 -> 2530 | I38: =I37 -> 0 | J38: =J37+K37 -> 212 | L38: =L37 -> 0 | M38: =M37 -> 2 | N38: =N37 -> 0 | O38: =O37+P37+Q37+R37+S37+T37 -> 65 | U38: =U37 -> 0 | V38: =V37 -> 30 | W38: =W37 -> 5 | X38: =X37+Y37 -> 265 | Z38: =Z37 -> 0 | AA38: =AA37 -> 0

Sheet PIK(17)
A1: PIKE COUNTY AUXILIARY MARKINGS SUB-SUMMARY
A2: ROUTE | B2: SLM | C2: CHANNELIZING LINE, 8" | D2: CHANNELIZING LINE, 12" | E2: STOP LINE | F2: CROSSWALK LINE, 12" | G2: TRANS. / DIAG. LINE (WHITE) | H2: TRANS. / DIAG. LINE (YELLOW) | I2: CURB MARKING | J2: ISLAND MARKING (YELLOW) | K2: ISLAND MARKING (WHITE) | L2: RAILROAD SYM. | M2: SCHOOL SYM., 96" | N2: PARKING LOT STALL MARKING | O2: LANE ARROW | U2: LANE REDUCTION | V2: TWO-WAY LT TRN | W2: WORD ON PAVE. | X2: DOTTED LINE, 6" (WHITE) | Y2: DOTTED LINE, 6" (YELLOW) | Z2: HANDICAP SYM. | AA2: YIELD LINE | AB2: REMARKS
O3: LEFT TURN | P3: RIGHT TURN | Q3: THRU | R3: COMB - LT/TH | S3: COMB - RT/TH | T3: COMB - LT/RT
C4: FT | D4: FT | E4: FT | F4: FT | G4: FT | H4: FT | I4: FT | J4: SF | K4: SF | L4: EA | M4: EA | N4: FT | O4: EA | P4: EA | Q4: EA | R4: EA | S4: EA | T4: EA | U4: EA | V4: EA | W4: EA | X4: FT | Y4: FT | Z4: EA | AA4: FT
A6: 220 | B6: 13.78 | M6: 1
A7: 220 | B7: 13.94 | M7: 1
A8: 220 | B8: 14.01 | E8: 28 | AB8: SR 32
A10: 335 | B10: 5.25 | E10: 50
A11: 335 | B11: 7.4 | E11: 24 | G11: 288
A12: 335 | B12: 21.65 | E12: 28 | L12: 2
A13: 335 | B13: 25.42 | C13: 135 | P13: 1 | W13: 1 | AB13: WORD: "ONLY"
A14: 335 | B14: 25.61 | F14: 46
A15: 335 | B15: 25.79 | F15: 48 | G15: 72
A16: 335 | B16: 25.87 | F16: 50
A17: 335 | B17: 26.04 | E17: 12 | F17: 42
A19: 551 | B19: 2.87 | E19: 43 | T19: 1 | AB19: SR 104
A21: 552 | B21: 0 | E21: 25 | AB21: SR 220
A22: 552 | B22: 1.75 | E22: 38 | T22: 1 | AB22: SR 104
A24: 772 | B24: 9.11 | E24: 20
A25: 772 | B25: 13.41 | E25: 44
A26: 772 | B26: 15.31 | E26: 16
A31: SUBTOTAL THIS SHEET | C31: =SUM(C5:C30) -> 135 | D31: 0 | E31: 328 | F31: 186 | G31: 360 | H31: 0 | I31: 0 | J31: 0 | K31: 0 | L31: 2 | M31: 2 | N31: 0 | O31: 0 | P31: 1 | Q31: 0 | R31: 0 | S31: 0 | T31: 2 | U31: 0 | V31: 0 | W31: 1 | X31: 0 | Y31: 0 | Z31: 0 | AA31: 0
A32: SHEET 16 TOTALS | C32: ='PIK(16)'!C38 -> 2421 | D32: ='PIK(16)'!D38 -> 1709 | E32: ='PIK(16)'!E38 -> 1208 | F32: ='PIK(16)'!F38 -> 1486 | G32: ='PIK(16)'!G38 -> 2530 | I32: ='PIK(16)'!I38 -> 0 | J32: ='PIK(16)'!J38 -> 212 | L32: ='PIK(16)'!L38 -> 0 | M32: ='PIK(16)'!M38 -> 2 | N32: ='PIK(16)'!N38 -> 0 | O32: ='PIK(16)'!O38 -> 65 | U32: ='PIK(16)'!U38 -> 0 | V32: ='PIK(16)'!V38 -> 30 | W32: ='PIK(16)'!W38 -> 5 | X32: ='PIK(16)'!X38 -> 265 | Z32: ='PIK(16)'!Z38 -> 0 | AA32: ='PIK(16)'!AA38 -> 0
A33: TOT. CARRIED TO GEN. SUM. | C33: =C31+C32 -> 2556 | D33: =D31+D32 -> 1709 | E33: =E31+E32 -> 1536 | F33: =F31+F32 -> 1672 | G33: =G32+G31+H31 -> 2890 | I33: =I31+I32 -> 0 | J33: =J32+J31+K31 -> 212 | L33: =L31+L32 -> 2 | M33: =M31+M32 -> 4 | N33: =N31+N32 -> 0 | O33: =O32+O31+P31+Q31+R31+S31+T31 -> 68 | U33: =U31+U32 -> 0 | V33: =V31+V32 -> 30 | W33: =W31+W32 -> 6 | X33: =X32+X31+Y31 -> 265 | Z33: =Z31+Z32 -> 0 | AA33: =AA31+AA32 -> 0

Sheet ROS(18)
A1: ROSS COUNTY AUXILIARY MARKINGS SUB-SUMMARY
A2: ROUTE | B2: SLM | C2: CHANNELIZING LINE, 8" | D2: CHANNELIZING LINE, 12" | E2: STOP LINE | F2: CROSSWALK LINE, 12" | G2: TRANS. / DIAG. LINE (WHITE) | H2: TRANS. / DIAG. LINE (YELLOW) | I2: CURB MARKING | J2: ISLAND MARKING (YELLOW) | K2: ISLAND MARKING (WHITE) | L2: RAILROAD SYM. | M2: SCHOOL SYM., 96" | N2: PARKING LOT STALL MARKING | O2: LANE ARROW | U2: LANE REDUCTION | V2: TWO-WAY LT TRN | W2: WORD ON PAVE. | X2: DOTTED LINE, 6" (WHITE) | Y2: DOTTED LINE, 6" (YELLOW) | Z2: HANDICAP SYM. | AA2: YIELD LINE | AB2: REMARKS
O3: LEFT TURN | P3: RIGHT TURN | Q3: THRU | R3: COMB - LT/TH | S3: COMB - RT/TH | T3: COMB - LT/RT
C4: FT | D4: FT | E4: FT | F4: FT | G4: FT | H4: FT | I4: FT | J4: SF | K4: SF | L4: EA | M4: EA | N4: FT | O4: EA | P4: EA | Q4: EA | R4: EA | S4: EA | T4: EA | U4: EA | V4: EA | W4: EA | X4: FT | Y4: FT | Z4: EA | AA4: FT
A5: 23 | B5: 0 | V5: 3 | AB5: SLM 0.00-0.64
A6: 23 | B6: 0.739 | D6: 300 | J6: 60 | O6: 3 | AB6: BLAIN HWY
A7: 23 | B7: 1.26 | V7: 4 | AB7: SLM 1.26-1.94
A8: 23 | B8: 4.97 | D8: 740 | E8: 46 | H8: 252 | J8: 60 | O8: 2 | U8: 2 | X8: 175 | AB8: ROZELLE CREEK
A9: 23 | B9: 7.82 | D9: 585 | E9: 63 | H9: 428 | J9: 114 | O9: 6 | X9: 225 | AB9: CAUBLE/MAPLE
A10: 23 | B10: 7.97 | D10: 75 | E10: 25 | AB10: STRAB
A11: 23 | B11: 8.5 | C11: 1324 | AB11: SR 104
A12: 23 | B12: 10.08 | E12: 38 | AB12: EXIT RAMP US 50 EB
A13: 23 | B13: 10.46 | E13: 40 | AB13: EXIT RAMP US 50 WB
A14: 35 | B14: 4.57 | D14: 867 | E14: 65 | X14: 1355
A15: 35 | B15: 4.91 | D15: 1149 | E15: 73 | X15: 687
A16: 35 | B16: 7.54 | D16: 879 | E16: 83 | X16: 1589
A17: 35 | B17: 7.9 | D17: 1040 | E17: 90 | X17: 552
A18: 35 | B18: 14.39 | D18: 3171 | E18: 50 | X18: 2521
A19: 35 | B19: 16.88 | D19: 1333 | E19: 89 | O19: 2 | S19: 2 | X19: 1501
A20: 35 | B20: 18.41 | D20: 3325 | E20: 101 | O20: 10 | P20: 6 | X20: 2735
A21: 35 | B21: 19.61 | D21: 1885 | E21: 36 | G21: 197 | O21: 2 | P21: 2 | X21: 1338
A22: 35 | B22: 19.77 | D22: 2238 | O22: 4 | S22: 4 | X22: 1963
A23: 35 | B23: 23.51 | D23: 1839 | E23: 12 | G23: 160 | X23: 1171
A24: 35 | B24: 24.55 | D24: 1291 | X24: 985
A25: 50 | B25: 26.95 | E25: 24 | G25: 82 | L25: 2
A26: 50 | B26: 28.22 | D26: 175 | E26: 48 | O26: 2
A27: 50 | B27: 28.48 | D27: 175 | O27: 2
A28: 50 | B28: 31.02 | C28: 205 | E28: 48 | H28: 192 | O28: 4 | AB28: LANCASTER RD
A29: 50 | B29: 31.17 | G29: 170
A30: 104 | B30: 8.64 | H30: 289 | J30: 40
A31: 104 | B31: 8.89 | D31: 60 | H31: 185 | J31: 20 | O31: 2 | AB31: US 23 SB RAMPS
A32: 104 | B32: 8.96 | D32: 125 | H32: 252 | J32: 60 | O32: 2 | AB32: BUSINESS DR
A33: 104 | B33: 9.03 | D33: 75 | H33: 217 | J33: 40 | O33: 2 | AB33: RENICK RD
A34: 104 | B34: 9.19 | D34: 133 | P34: 2 | X34: 147 | Y34: 294 | AB34: CHURCH ENT.
A36: SUBTOTAL THIS SHEET | C36: =SUM(C5:C35) -> 1529 | D36: 21460 | E36: 931 | F36: 0 | G36: 609 | H36: 1815 | I36: 0 | J36: 394 | K36: 0 | L36: 2 | M36: 0 | N36: 0 | O36: 43 | P36: 10 | Q36: 0 | R36: 0 | S36: 6 | T36: 0 | U36: 2 | V36: 7 | W36: 0 | X36: 16944 | Y36: 294 | Z36: 0 | AA36: 0
A37: TOT. CARRIED TO SHEET 19 | C37: =C36 -> 1529 | D37: =D36 -> 21460 | E37: =E36 -> 931 | F37: =F36 -> 0 | G37: =G36+H36 -> 2424 | I37: =I36 -> 0 | J37: =J36+K36 -> 394 | L37: =L36 -> 2 | M37: =M36 -> 0 | N37: =N36 -> 0 | O37: =O36+P36+Q36+R36+S36+T36 -> 59 | U37: =U36 -> 2 | V37: =V36 -> 7 | W37: =W36 -> 0 | X37: =X36+Y36 -> 17238 | Z37: =Z36 -> 0 | AA37: =AA36 -> 0

Sheet ROS(19)
A1: ROSS COUNTY AUXILIARY MARKINGS SUB-SUMMARY
A2: ROUTE | B2: SLM | C2: CHANNELIZING LINE, 8" | D2: CHANNELIZING LINE, 12" | E2: STOP LINE | F2: CROSSWALK LINE, 12" | G2: TRANS. / DIAG. LINE (WHITE) | H2: TRANS. / DIAG. LINE (YELLOW) | I2: CURB MARKING | J2: ISLAND MARKING (YELLOW) | K2: ISLAND MARKING (WHITE) | L2: RAILROAD SYM. | M2: SCHOOL SYM., 96" | N2: PARKING LOT STALL MARKING | O2: LANE ARROW | U2: LANE REDUCTION | V2: TWO-WAY LT TRN | W2: WORD ON PAVE. | X2: DOTTED LINE, 6" (WHITE) | Y2: DOTTED LINE, 6" (YELLOW) | Z2: HANDICAP SYM. | AA2: YIELD LINE | AB2: REMARKS
O3: LEFT TURN | P3: RIGHT TURN | Q3: THRU | R3: COMB - LT/TH | S3: COMB - RT/TH | T3: COMB - LT/RT
C4: FT | D4: FT | E4: FT | F4: FT | G4: FT | H4: FT | I4: FT | J4: SF | K4: SF | L4: EA | M4: EA | N4: FT | O4: EA | P4: EA | Q4: EA | R4: EA | S4: EA | T4: EA | U4: EA | V4: EA | W4: EA | X4: FT | Y4: FT | Z4: EA | AA4: FT
A6: 104 | B6: 9.45 | D6: 236 | P6: 3 | X6: 86 | Y6: 172 | AB6: LUMBECK RD
A7: 104 | B7: 10.06 | H7: 95
A8: 104 | B8: 10.22 | H8: 135
A9: 104 | B9: 14.47 | D9: 208 | E9: 82 | J9: 72 | O9: 2 | AB9: US 35 EB RAMPS
A10: 104 | B10: 14.62 | D10: 200 | E10: 62 | J10: 72 | O10: 2 | AB10: US 35 WB RAMPS
A11: 104 | B11: 15.21 | C11: 662 | H11: 962 | O11: 4 | AB11: PLEASANT VALLEY RD
A12: 104 | B12: 15.49 | C12: 510 | H12: 276 | O12: 4 | AB12: ACCESS RD
A13: 104 | B13: 15.86 | C13: 790 | E13: 83 | H13: 491 | O13: 4 | AB13: MOUNDSVILLE RD
A14: 104 | B14: 16.21 | C14: 450 | H14: 880 | O14: 4 | AB14: HOPEWELL/PRISON
A15: 104 | B15: 16.28 | H15: 666 | V15: 7 | AB15: SLM 16.28-17.55
A16: 104 | B16: 17.98 | D16: 620 | H16: 232 | O16: 3 | P16: 3 | AB16: SLM 18.01-18.18
A17: 104 | B17: 18.5 | D17: 627 | G17: 286 | H17: 437 | J17: 65 | O17: 3 | AB17: SR 207 (NORTH)
A19: 159 | B19: 0.79 | C19: 400 | E19: 98 | F19: 200 | H19: 665 | P19: 6 | W19: 1 | AB19: WORD: "ONLY", STEWART RD
A20: 159 | B20: 0.93 | C20: 770 | E20: 82 | G20: 16 | H20: 110 | O20: 7 | P20: 2 | AB20: US 35 EB RAMPS
A21: 159 | B21: 1.11 | C21: 370 | E21: 108 | F21: 85 | G21: 152 | H21: 171 | O21: 6 | P21: 4 | AB21: US 35 EB RAMPS
A22: 159 | B22: 2.7 | C22: 1160 | F22: 110 | G22: 190 | H22: 300 | J22: 120 | O22: 10 | P22: 7
A23: 159 | B23: 3.08 | C23: 379 | E23: 88 | F23: 266 | O23: 5 | AB23: HOPETOWN RD
A24: 159 | B24: 3.73 | C24: 760 | E24: 112 | H24: 440 | J24: 12 | O24: 9 | W24: 2 | AB24: WORD: "ONLY"
A25: 159 | B25: 3.87 | C25: 102 | H25: 1356 | J25: 86 | O25: 2 | AB25: OVERBRIDGE RD
A26: 159 | B26: 4.1 | C26: 1942 | E26: 158 | H26: 1126 | O26: 17 | P26: 6 | AB26: HOSPITAL RD & KENWORTH
A27: 159 | B27: 4.67 | C27: 415 | G27: 45 | P27: 3 | AB27: KENWORHT NORTH ACCESS
A28: 159 | B28: 5.22 | C28: 610 | E28: 68 | G28: 194 | H28: 171 | O28: 7 | S28: 3 | AB28: DELANO RD
A29: 159 | B29: 6.18 | O29: 2 | R29: 6 | W29: 4 | X29: 144 | AA29: 78 | AB29: WORD: "YIELD", SR 207 & 180
A30: 180 | B30: 0 | M30: 2 | W30: 1 | X30: 32 | AA30: 18 | AB30: WORD: "YIELD"
A31: SUBTOTAL THIS SHEET | C31: =SUM(C5:C30) -> 9320 | D31: 1891 | E31: 941 | F31: 661 | G31: 883 | H31: 8513 | I31: 0 | J31: 427 | K31: 0 | L31: 0 | M31: 2 | N31: 0 | O31: 91 | P31: 34 | Q31: 0 | R31: 6 | S31: 3 | T31: 0 | U31: 0 | V31: 7 | W31: 8 | X31: 262 | Y31: 172 | Z31: 0 | AA31: 96
A32: SHEET 18 TOTALS | C32: ='ROS(18)'!C37 -> 1529 | D32: ='ROS(18)'!D37 -> 21460 | E32: ='ROS(18)'!E37 -> 931 | F32: ='ROS(18)'!F37 -> 0 | G32: ='ROS(18)'!G37 -> 2424 | I32: ='ROS(18)'!I37 -> 0 | J32: ='ROS(18)'!J37 -> 394 | L32: ='ROS(18)'!L37 -> 2 | M32: ='ROS(18)'!M37 -> 0 | N32: ='ROS(18)'!N37 -> 0 | O32: ='ROS(18)'!O37 -> 59 | U32: ='ROS(18)'!U37 -> 2 | V32: ='ROS(18)'!V37 -> 7 | W32: ='ROS(18)'!W37 -> 0 | X32: ='ROS(18)'!X37 -> 17238 | Z32: ='ROS(18)'!Z37 -> 0 | AA32: ='ROS(18)'!AA37 -> 0
A33: TOT. CARRIED TO GEN. SUM. | C33: =C31+C32 -> 10849 | D33: =D31+D32 -> 23351 | E33: =E31+E32 -> 1872 | F33: =F31+F32 -> 661 | G33: =G32+G31+H31 -> 11820 | I33: =I31+I32 -> 0 | J33: =J32+J31+K31 -> 821 | L33: =L31+L32 -> 2 | M33: =M31+M32 -> 2 | N33: =N31+N32 -> 0 | O33: =O32+O31+P31+Q31+R31+S31+T31 -> 193 | U33: =U31+U32 -> 2 | V33: =V31+V32 -> 14 | W33: =W31+W32 -> 8 | X33: =X32+X31+Y31 -> 17672 | Z33: =Z31+Z32 -> 0 | AA33: =AA31+AA32 -> 96

Sheet SCI(20)
A1: SCIOTO COUNTY AUXILIARY MARKINGS SUB-SUMMARY
A2: ROUTE | B2: SLM | C2: CHANNELIZING LINE, 8" | D2: CHANNELIZING LINE, 12" | E2: STOP LINE | F2: CROSSWALK LINE, 12" | G2: TRANS. / DIAG. LINE (WHITE) | H2: TRANS. / DIAG. LINE (YELLOW) | I2: CURB MARKING | J2: ISLAND MARKING (YELLOW) | K2: ISLAND MARKING (WHITE) | L2: RAILROAD SYM. | M2: SCHOOL SYM., 96" | N2: PARKING LOT STALL MARKING | O2: LANE ARROW | U2: LANE REDUCTION | V2: TWO-WAY LT TRN | W2: WORD ON PAVE. | X2: DOTTED LINE, 6" (WHITE) | Y2: DOTTED LINE, 6" (YELLOW) | Z2: HANDICAP SYM. | AA2: YIELD LINE | AB2: REMARKS
O3: LEFT TURN | P3: RIGHT TURN | Q3: THRU | R3: COMB - LT/TH | S3: COMB - RT/TH | T3: COMB - LT/RT
C4: FT | D4: FT | E4: FT | F4: FT | G4: FT | H4: FT | I4: FT | J4: SF | K4: SF | L4: EA | M4: EA | N4: FT | O4: EA | P4: EA | Q4: EA | R4: EA | S4: EA | T4: EA | U4: EA | V4: EA | W4: EA | X4: FT | Y4: FT | Z4: EA | AA4: FT
A5: 23 | B5: 10.59 | E5: 48 | F5: 210 | G5: 180 | H5: 96 | J5: 50
A6: 23 | B6: 11.43 | D6: 955 | E6: 101 | G6: 333 | H6: 320 | O6: 5 | AB6: SR 348
A7: 52 | B7: 15.33 | C7: 190 | E7: 35 | H7: 190 | J7: 30 | M7: 1 | O7: 2 | AB7: WEST PORTSMOUTH SCHOOL
A8: 52 | B8: 15.65 | C8: 305 | H8: 121 | J8: 50 | M8: 1 | O8: 3 | AB8: WEST PORTSMOUTH SCHOOL
A9: 52 | B9: 15.9 | C9: 270 | G9: 130 | H9: 354 | K9: 60 | O9: 2 | V9: 4
A10: 52 | B10: 16.1 | C10: 240 | H10: 282 | J10: 60 | K10: 60 | O10: 2 | AB10: CAREYS RUN RD
A11: 52 | B11: 16.68 | C11: 230 | G11: 135 | H11: 240 | O11: 2
A12: 52 | B12: 17.36 | E12: 36 | AB12: EXIT RAMP US 52 WB
A13: 52 | B13: 23.62 | C13: 625 | E13: 124 | O13: 3 | P13: 4
A14: 52 | B14: 27.8 | C14: 4513 | E14: 148
A15: 52 | B15: 30.56 | C15: 1226 | E15: 136
A16: 52F | B16: 0 | E16: 199 | F16: 541 | M16: 1 | AB16: SLM 0.00-1.67
A17: 73 | B17: 1.37 | F17: 140
A18: 73 | B18: 10.36 | E18: 24 | L18: 2
A19: 73 | B19: 22.15 | D19: 400 | H19: 891 | J19: 230 | O19: 4 | V19: 6 | W19: 2 | AB19: WORD: "ONLY",SLM 22.15-24.02
A20: 73 | B20: 24.43 | C20: 130 | H20: 305 | J20: 275 | O20: 2 | AB20: SR 239
A21: 73 | B21: 25.49 | H21: 65
A22: 104 | B22: 6.4 | E22: 15 | AB22: SR 73
A23: 104 | B23: 8.62 | E23: 24 | L23: 2
A24: 104 | B24: 12.1 | H24: 120
A25: 104 | B25: 12.13 | C25: 620 | E25: 48 | H25: 225 | J25: 85 | O25: 6 | W25: 3 | AB25: WORD: "ONLY", SR 348
A26: 125 | B26: 4.44 | C26: 425 | H26: 81 | O26: 2 | P26: 2 | Q26: 4
A27: 139 | B27: 0.07 | E27: 14 | F27: 100 | H27: 28 | J27: 10
A28: 139 | B28: 0.31 | E28: 64 | F28: 60
A29: 139 | B29: 10.7 | C29: 235 | E29: 26
A30: 140 | B30: 0.39 | H30: 300
A31: 140 | B31: 0.51 | C31: 590 | H31: 87 | O31: 4 | P31: 3
A36: SUBTOTAL THIS SHEET | C36: =SUM(C5:C35) -> 9599 | D36: 1355 | E36: 1042 | F36: 1051 | G36: 778 | H36: 3705 | I36: 0 | J36: 790 | K36: 120 | L36: 4 | M36: 3 | N36: 0 | O36: 37 | P36: 9 | Q36: 4 | R36: 0 | S36: 0 | T36: 0 | U36: 0 | V36: 10 | W36: 5 | X36: 0 | Y36: 0 | Z36: 0 | AA36: 0
A37: TOT. CARRIED TO SHEET 21 | C37: =C36 -> 9599 | D37: =D36 -> 1355 | E37: =E36 -> 1042 | F37: =F36 -> 1051 | G37: =G36+H36 -> 4483 | I37: =I36 -> 0 | J37: =J36+K36 -> 910 | L37: =L36 -> 4 | M37: =M36 -> 3 | N37: =N36 -> 0 | O37: =O36+P36+Q36+R36+S36+T36 -> 50 | U37: =U36 -> 0 | V37: =V36 -> 10 | W37: =W36 -> 5 | X37: =X36+Y36 -> 0 | Z37: =Z36 -> 0 | AA37: =AA36 -> 0

Sheet SCI(21)
A1: SCIOTO COUNTY AUXILIARY MARKINGS SUB-SUMMARY
A2: ROUTE | B2: SLM | C2: CHANNELIZING LINE, 8" | D2: CHANNELIZING LINE, 12" | E2: STOP LINE | F2: CROSSWALK LINE, 12" | G2: TRANS. / DIAG. LINE (WHITE) | H2: TRANS. / DIAG. LINE (YELLOW) | I2: CURB MARKING | J2: ISLAND MARKING (YELLOW) | K2: ISLAND MARKING (WHITE) | L2: RAILROAD SYM. | M2: SCHOOL SYM., 96" | N2: PARKING LOT STALL MARKING | O2: LANE ARROW | U2: LANE REDUCTION | V2: TWO-WAY LT TRN | W2: WORD ON PAVE. | X2: DOTTED LINE, 6" (WHITE) | Y2: DOTTED LINE, 6" (YELLOW) | Z2: HANDICAP SYM. | AA2: YIELD LINE | AB2: REMARKS
O3: LEFT TURN | P3: RIGHT TURN | Q3: THRU | R3: COMB - LT/TH | S3: COMB - RT/TH | T3: COMB - LT/RT
C4: FT | D4: FT | E4: FT | F4: FT | G4: FT | H4: FT | I4: FT | J4: SF | K4: SF | L4: EA | M4: EA | N4: FT | O4: EA | P4: EA | Q4: EA | R4: EA | S4: EA | T4: EA | U4: EA | V4: EA | W4: EA | X4: FT | Y4: FT | Z4: EA | AA4: FT
A6: 239 | B6: 0.16 | E6: 12
A7: 239 | B7: 1.2 | E7: 28 | AB7: SR 73
A8: 253 | B8: 0.15 | C8: 140 | H8: 409 | O8: 2
A9: 335 | B9: 7.79 | C9: 300 | O9: 4
A10: 335 | B10: 9.14 | C10: 300 | H10: 263 | O10: 4
A11: 335 | B11: 9.28 | E11: 30
A12: 335 | B12: 9.76 | E12: 26
A13: 348 | B13: 6.1 | E13: 42 | L13: 2 | AB13: SR 73
A14: 348 | B14: 6.38 | E14: 21
A15: 371 | B15: 0.4 | E15: 22 | AB15: SR 73
A16: 522 | B16: 1.8 | E16: 20 | H16: 75
A17: 776 | B17: 0 | E17: 14 | AB17: SR 335
A18: 852 | B18: 0.55 | C18: 735 | E18: 48 | H18: 70 | J18: 65 | O18: 3 | P18: 3
A19: 852 | B19: 0.73 | C19: 175 | E19: 24 | H19: 278 | J19: 118
A31: SUBTOTAL THIS SHEET | C31: =SUM(C5:C30) -> 1650 | D31: 0 | E31: 287 | F31: 0 | G31: 0 | H31: 1095 | I31: 0 | J31: 183 | K31: 0 | L31: 2 | M31: 0 | N31: 0 | O31: 13 | P31: 3 | Q31: 0 | R31: 0 | S31: 0 | T31: 0 | U31: 0 | V31: 0 | W31: 0 | X31: =SUM(X5:X30) -> 0 | Y31: 0 | Z31: =SUM(Z5:Z30) -> 0 | AA31: =SUM(AA5:AA30) -> 0
A32: SHEET 20 TOTALS | C32: ='SCI(20)'!C37 -> 9599 | D32: ='SCI(20)'!D37 -> 1355 | E32: ='SCI(20)'!E37 -> 1042 | F32: ='SCI(20)'!F37 -> 1051 | G32: ='SCI(20)'!G37 -> 4483 | I32: ='SCI(20)'!I37 -> 0 | J32: ='SCI(20)'!J37 -> 910 | L32: ='SCI(20)'!L37 -> 4 | M32: ='SCI(20)'!M37 -> 3 | N32: ='SCI(20)'!N37 -> 0 | O32: ='SCI(20)'!O37 -> 50 | U32: ='SCI(20)'!U37 -> 0 | V32: ='SCI(20)'!V37 -> 10 | W32: ='SCI(20)'!W37 -> 5 | X32: ='SCI(20)'!X37 -> 0 | Z32: ='SCI(20)'!Z37 -> 0 | AA32: ='SCI(20)'!AA37 -> 0
A33: TOT. CARRIED TO GEN. SUM. | C33: =C31+C32 -> 11249 | D33: =D31+D32 -> 1355 | E33: =E31+E32 -> 1329 | F33: =F31+F32 -> 1051 | G33: =G32+G31+H31 -> 5578 | I33: =I31+I32 -> 0 | J33: =J32+J31+K31 -> 1093 | L33: =L31+L32 -> 6 | M33: =M31+M32 -> 3 | N33: =N31+N32 -> 0 | O33: =O32+O31+P31+Q31+R31+S31+T31 -> 66 | U33: =U31+U32 -> 0 | V33: =V31+V32 -> 10 | W33: =W31+W32 -> 5 | X33: =X32+X31+Y31 -> 0 | Z33: =Z31+Z32 -> 0 | AA33: =AA31+AA32 -> 0

Sheet FACILITIES(21)
A1: DISTRICT 9 PARK AND RIDES, REST AREAS AND GARAGES
A2: COUNTY | B2: LOCATION SLM | C2: EDGE LINE | E2: CENTER LINE | F2: 8" CHANNELIZING LINE | H2: 24' STOP LINE | I2: TRANSVERSE DIAGONAL LINE | K2: CURB MARKING | M2: PARKING LOT STALL LINE | P2: LANE ARROW THRU | Q2: 48" HANDICAP SYMBOL MARKING | R2: Remarks
C3: W | D3: Y | F3: W | G3: Y | I3: W | J3: Y | K3: W | L3: Y | M3: W | N3: Y | O3: B
C4: MILES | E4: MILES | F4: FT | H4: FT | I4: FT | K4: FT | M4: FT | P4: EACH | Q4: EACH
A5: ADAMS | B5: SR 41-11.60 | F5: 274 | I5: 60 | M5: 999 | Q5: 1 | R5: WEST UNION GARAGE
A6: ADAMS | B6: SR 32-13.26 | C6: 0.09 | E6: 0.01 | H6: 22 | M6: 544 | Q6: 1 | R6: PEEBLES OUTPOST
A8: BROWN | B8: SR 125-10.56 | M8: 474 | Q8: 1 | R8: GEORGETOWN GARAGE
A9: BROWN | B9: SR 32-10.33 | H9: 33 | M9: 1846 | N9: 55 | Q9: 2 | R9: REST AREA 09-04
A10: BROWN | B10: SR 32-11.33 | M10: 837 | P10: 2 | Q10: 1 | R10: PARK AND RIDE
A12: HIGHLAND | B12: SR 124-10.67 | M12: 1264 | R12: HILLSBORO GARAGE
A14: JACKSON | B14: SR 32-8.64 | M14: 1329 | R14: PARK AND RIDE
A15: JACKSON | B15: US 35-2.36 | F15: 110 | M15: 2517 | N15: 433 | Q15: 2 | R15: REST AREA 09-30
A16: JACKSON | B16: SR 32-14.56 | M16: 1272 | Q16: 1 | R16: JACKSON GARAGE
A18: LAWRENCE | B18: US 52-9.57 | M18: 1022 | O18: 48 | Q18: 2 | R18: IRONTON GARAGE
A20: PIKE | B20: SR 32-15.43 | J20: 155 | M20: 1720 | Q20: 3 | R20: PIKETON GARAGE
A21: PIKE | B21: SR 104-6.45 | R21: PARK AND RIDE
A23: ROSS | B23: US 35-16.60 | M23: 800 | Q23: 2 | R23: CHILLICOTHE GARAGE
A24: ROSS | B24: SR 207-0.91 | M24: 1180 | R24: PARK AND RIDE
A25: ROSS | B25: US 50-25.13 | I25: 57 | M25: 8110 | Q25: 4 | R25: D09 HEADQUATERS
A27: SCIOTO | B27: US 23-9.59 | M27: 1080 | N27: 60 | Q27: 2 | R27: LUCASVILLE GARAGE
A28: SCIOTO | B28: US 23-16.25 | K28: 875 | L28: 1947 | M28: 2361 | N28: 37 | Q28: 3 | R28: REST AREA 09-23
A29: SCIOTO | B29: SR 335-8.72 | H29: 38 | I29: 690 | M29: 900 | P29: 3 | R29: PARK AND RIDE
A31: SUBTOTALS: | C31: =SUM(C6:C30) -> 0.09 | D31: =SUM(D5:D30) -> 0 | E31: =SUM(E5:E30) -> 0.01 | F31: =SUM(F5:F30) -> 384 | H31: =SUM(H5:H30) -> 93 | I31: 807 | J31: 155 | K31: 875 | L31: 1947 | M31: 28255 | N31: 585 | O31: 48 | P31: 5 | Q31: 25
A32: TOTALS CARRIED TO THE GENERAL SUMMARY | C32: =C31+D31 -> 0.09 | E32: =E31 -> 0.01 | F32: =F31+G31 -> 384 | H32: =H31 -> 93 | I32: =I31+J31 -> 962 | K32: =K31+L31 -> 2822 | M32: =M31+N31+O31 -> 28888 | P32: =P31 -> 5 | Q32: =Q31 -> 25
